{"text_format":"1","workbook":"xlsx","n_sheets":18,"sheets":["Español-Ingles","#1","#2","#3","#4","#5","Hidrografía","Regularidad","Servicios Públicos","Vía","Ubicación","Uso de Suelo","Ingles-Español","Datos","Provincias-Muni","Municipalidades y Concejos de D","Nivel","Pendiente"],"not_rendered":{"charts":0,"images":43,"macros":1,"external_links":0,"defined_names":7,"comments":0,"pivot_tables":0},"unopened":[],"bounds":{"document_bytes":16777216,"sheet_cells":100000,"rows_first":2000,"rows_last":500,"rows_between":2000,"halvings":0,"cell_chars":16384,"cell_head_chars":4096},"cells_cut":0,"cells_raw":0,"read":"row_number_cap","date_system":"1900"}

{"sheet":"Español-Ingles","index":0,"n_rows":56,"n_cols":37,"rows_kept":56,"cut":false,"hidden":false,"merged":[[31,20,31,21],[29,29,30,29],[29,34,40,35],[38,24,38,25],[35,11,35,14],[36,11,36,14],[32,15,32,17],[36,15,36,17],[24,29,24,36],[2,24,2,30],[2,31,2,36],[16,25,16,29],[33,26,33,28],[2,5,2,23],[3,5,4,36],[5,5,5,36],[29,15,30,17],[29,18,30,19],[29,20,30,21],[29,22,30,23],[29,24,30,25],[29,26,30,28],[29,30,30,33],[18,33,18,36],[33,30,33,33],[27,29,27,30],[25,12,25,21],[25,23,25,36],[21,18,21,20],[20,29,20,35],[19,27,19,28],[20,21,20,27],[21,21,21,27],[32,20,32,21],[28,0,28,36],[31,26,31,28],[37,15,37,17],[38,15,38,17],[39,15,39,17],[40,15,40,17],[35,20,35,21],[16,31,16,36],[34,30,34,33],[35,30,35,33],[39,26,39,28],[40,26,40,28],[40,20,40,21],[21,12,21,17],[18,9,18,10],[27,23,27,28],[26,15,26,36],[31,15,31,17],[18,20,18,22],[18,24,18,32],[26,0,26,14],[27,31,27,36],[27,0,27,22],[37,26,37,28],[38,20,38,21],[38,26,38,28],[16,0,16,4],[17,34,17,35],[49,17,49,28],[46,28,46,36],[46,17,46,27],[31,30,31,33],[32,30,32,33],[36,18,36,19],[35,26,35,28],[36,20,36,21],[36,26,36,28],[32,26,32,28],[38,30,38,33],[39,30,39,33],[39,24,39,25],[37,18,37,19],[33,24,33,25],[47,30,47,35],[37,24,37,25],[31,24,31,25],[49,29,49,36],[40,11,40,14],[33,20,33,21],[33,1,33,4],[34,1,34,4],[35,1,35,4],[36,1,36,4],[37,1,37,4],[38,1,38,4],[39,1,39,4],[38,18,38,19],[37,20,37,21],[53,25,53,27],[67,11,67,12],[65,11,65,12],[66,11,66,12],[15,0,15,4],[18,0,18,8],[38,5,38,6],[36,5,36,6],[36,7,36,10],[29,0,30,0],[48,0,48,11],[49,0,49,11],[38,7,38,10],[34,5,34,6],[34,7,34,10],[31,7,31,10],[33,5,33,6],[33,7,33,10],[32,5,32,6],[43,0,43,7],[45,0,45,36],[39,5,39,6],[53,6,53,17],[54,6,54,17],[52,0,52,7],[32,24,32,25],[40,24,40,25],[34,24,34,25],[33,18,33,19],[34,18,34,19],[35,5,35,6],[35,18,35,19],[48,17,48,29],[50,0,50,36],[52,8,52,16],[52,26,52,30],[52,17,52,25],[36,30,36,33],[39,7,39,10],[38,11,38,14],[32,7,32,10],[32,18,32,19],[47,0,47,11],[42,25,42,29],[42,0,42,24],[35,24,35,25],[49,12,49,16],[46,12,46,16],[31,18,31,19],[47,12,47,16],[48,12,48,16],[46,0,46,11],[40,7,40,10],[41,0,41,17],[41,18,41,36],[42,31,42,36],[40,30,40,33],[36,24,36,25],[31,11,31,14],[32,11,32,14],[40,22,40,23],[35,7,35,10],[37,5,37,6],[37,7,37,10],[39,20,39,21],[33,11,33,14],[33,15,33,17],[34,15,34,17],[37,30,37,33],[48,30,48,36],[40,1,40,4],[39,11,39,14],[100,0,101,36],[0,0,5,4],[7,0,7,13],[7,14,7,36],[1,24,1,30],[17,3,17,11],[9,24,9,27],[9,28,9,36],[9,8,9,12],[34,20,34,21],[34,26,34,28],[39,18,39,19],[40,18,40,19],[54,0,54,5],[53,0,53,5],[53,28,53,30],[54,28,54,30],[55,28,55,30],[40,5,40,6],[20,13,20,18],[47,17,47,29],[35,15,35,17],[37,11,37,14],[31,5,31,6],[25,0,25,11],[13,0,13,9],[13,10,13,36],[15,10,15,13],[24,0,24,14],[29,1,30,4],[29,5,30,6],[29,7,30,10],[29,11,30,14],[18,12,18,19],[17,12,17,17],[17,19,17,25],[19,5,19,8],[21,9,21,10],[20,0,20,5],[19,0,19,4],[16,8,16,17],[17,0,17,2],[16,5,16,7],[0,16,0,23],[0,5,0,15],[11,0,11,6],[11,8,11,12],[0,34,0,36],[0,24,0,33],[31,22,31,23],[20,6,20,12],[23,19,23,20],[22,7,22,16],[22,24,22,28],[24,15,24,28],[17,27,17,33],[6,0,6,36],[21,29,21,35],[9,0,9,6],[16,19,16,21],[19,34,19,36],[23,21,23,28],[23,15,23,18],[23,7,23,14],[22,29,22,35],[31,1,31,4],[11,13,11,21],[55,25,55,27],[43,8,43,36],[44,0,44,36],[53,18,53,23],[54,18,54,23],[21,0,21,8],[19,29,19,33],[51,0,51,30],[51,31,55,36],[54,25,54,27],[19,17,19,20],[19,21,19,26],[19,13,19,16],[20,19,20,20],[55,0,55,8],[55,9,55,24],[19,10,19,12],[23,29,23,35],[22,0,22,6],[22,17,22,23],[23,0,23,6],[37,22,37,23],[38,22,38,23],[39,22,39,23],[34,11,34,14],[32,22,32,23],[33,22,33,23],[34,22,34,23],[35,22,35,23],[36,22,36,23],[1,31,1,36],[15,27,15,36],[14,0,14,13],[14,14,14,36],[8,11,8,36],[15,14,15,22],[15,23,15,26],[16,22,16,23],[8,0,8,10],[9,13,9,21],[9,22,9,23],[12,0,12,36],[11,22,11,36],[15,5,15,9],[10,0,10,11],[10,12,10,36],[1,5,1,23],[32,1,32,4]]}
[null,null,null,null,null,{"$f":"IF(Q1=\"Cóbano\",\"Concejo Municipal de\",IF(Q1=\"Lepanto\",\"Concejo Municipal de\",IF(Q1=\"Paquera\", \"Concejo Municipal de\",IF(Q1=\"Monteverde\",\"Concejo Municipal de\",IF( Q1=\"Colorado\",\"Concejo Municipal de\",IF(Q1=\"Cervantes\", \"Concejo Municipal de\",IF(Q1=\"Tucurrique\",\"Concejo Municipal de\",IF( Q1=\"Peñas Blancas\",\"Concejo Municipal de\",\"Municipality of\"))))))))","v":"Municipality of"},null,null,null,null,null,null,null,null,null,null,"Orotina",null,null,null,null,null,null,null,"Next Tax Report",null,null,null,null,null,null,null,null,null,{"$f":"YEAR(TODAY())+5","v":2025}]
[null,null,null,null,null,"Property Tax Declaration",null,null,null,null,null,null,null,null,null,null,null,null,null,null,null,null,null,null,"Report #"]
[null,null,null,null,null,"Law 7509 and its Reforms",null,null,null,null,null,null,null,null,null,null,null,null,null,null,null,null,null,null,"GIS Municipality #"]
[]
[]
[null,null,null,null,null,"Mandatory fields (•) /One form per property owner"]
["#1-Owner's details "]
["•Full Name or Business Name"]
["•Mailing address"]
["•Cédula de Identidad",null,null,null,null,null,null,"ID",null,null,null,null,null,"Telephone-Email",null,null,null,null,null,null,null,null,506]
["•Legal Representative"]
["•Cédula de Identidad",null,null,null,null,null,null,"ID",null,null,null,null,null,"Full Address"]
["#2-Ownership details "]
["Property Address"]
["•Notification Preference"]
["Province",null,null,null,null,{"$f":"IF(OR(Q1=\"San José\",Q1=\"Escazú\",Q1=\"Desamparados\",Q1=\"Puriscal\",Q1=\"Tarrazú\",Q1=\"Aserrí\",Q1=\"Mora\",Q1=\"Goicoechea\",Q1=\"Santa Ana\",Q1=\"Alajuelita\",Q1=\"Vázquez de Coronado\",Q1=\"Acosta\",Q1=\"Tibás\",Q1=\"Moravia\",Q1=\"Montes de Oca\",Q1=\"Turrubares\",Q1=\"Dota\",Q1=\"Curridabat\",Q1=\"Peréz Zeledón\",Q1=\"León Cortés Castro\"),\"1-San José\",IF(OR(Q1=\"Alajuela\",Q1=\"San Ramón\",Q1=\"Peñas Blancas\",Q1=\"Grecia\",Q1=\"San Mateo\",Q1=\"Atenas\",Q1=\"Naranjo\",Q1=\"Palmares\",Q1=\"Poás\",Q1=\"Orotina\",Q1=\"San Carlos\",Q1=\"Zarcero\",Q1=\"Valverde Vega\",Q1=\"Upala\",Q1=\"Los Chiles\",Q1=\"Guatuso\",Q1=\"Rio Cuarto\"),\"2-Alajuela\",IF(OR(Q1=\"Cartago\",Q1=\"Paraíso\",Q1=\"La Unión\",Q1=\"Jimenez\",Q1=\"Tucurrique\",Q1=\"Turrialba\",Q1=\"Alvarado\",Q1=\"Cervantes\",Q1=\"Oreamuno\",Q1=\"El Guarco\"),\"3-Cartago\",IF(OR(Q1=\"Heredia\",Q1=\"Barva\",Q1=\"Santo Domingo\",Q1=\"Santa Bárbara\",Q1=\"San Rafael\",Q1=\"San Isidro\",Q1=\"Belén\",Q1=\"Flores\",Q1=\"San Pablo\",Q1=\"Sarapiquí\"),\"4-Heredia\",IF(OR(Q1=\"Liberia\",Q1=\"Nicoya\",Q1=\"Santa Cruz\",Q1=\"Bagaces\",Q1=\"Carrillo\",Q1=\"Cañas\",Q1=\"Abangares\",Q1=\"Colorado\",Q1=\"Tilarán\",Q1=\"Nandayure\",Q1=\"La Cruz\",Q1=\"Hojancha\"),\"5-Guanacaste\",IF(OR(Q1=\"Puntarenas\",Q1=\"Esparza\",Q1=\"Buenos Aires\",Q1=\"Montes de Oro\",Q1=\"Osa\",Q1=\"Quepos\",Q1=\"Golfito\",Q1=\"Coto Brus\",Q1=\"Parrita\",Q1=\"Corredores\",Q1=\"Garabito\",Q1=\"Lepanto\",Q1=\"Paquera\",Q1=\"Cóbano\",Q1=\"Monteverde\"),\"6-Puntarenas\",\"7-Limón\"))))))","v":"2-Alajuela"},null,null,null,null,"City",null,null,null,null,null,null,null,null,null,null,null,null,"District"]
["•Property #",null,null,null,null,null,null,null,"Registered Deed #",null,null,null,null,null,null,null,null,null,"SJ",null,null,null,null,null,null,"Registered",null,null,null,null,null,"Sin Inscribir"]
["Area",null,null,null,null,null,null,null,null,null,null,null,"Duplicate",null,null,null,null,null,null,"Affiliate owners",null,null,null,null,null,null,null,"Property owner #"]
["# of Co-owners",null,null,null,null,null,null,null,null,null,null,null,"% of ownership",null,null,null,null,null,null,null,100,null,null,null,"Common area ownership %"]
[" Access Level",null,null,null,null,"A Nivel/Even ",null,null,null,{"$f":"IF(F20=\"Sobre/Above \",\"+\",IF(F20=\"A Nivel/Even \",\"=\",\"-\"))","v":"="},null,null,null,"Front",null,null,null,null,null,null,null,"Public services 1",null,null,null,null,null,{"$f":"IF(AND(AC21=FALSE,AC22=FALSE),1,IF(AND(AC21=TRUE,AC22=FALSE),2,IF(AND(AC21=FALSE,AC22=TRUE),3,4)))","v":1},null,"Public services 2",null,null,null,null,{"$f":"IF(AND(AK21=FALSE,AK22=FALSE,AK23=FALSE,AK24=FALSE),1,IF(AND(AK21=TRUE,AK22=FALSE,AK23=FALSE,AK24=FALSE),2,IF(AND(AK21=FALSE,AK22=TRUE,AK23=FALSE,AK24=FALSE),3,IF(AND(AK21=FALSE,AK22=FALSE,AK23=TRUE,AK24=FALSE),4,IF(AND(AK21=FALSE,AK22=FALSE,AK23=FALSE,AK24=TRUE),5,IF(AND(AK21=TRUE,AK22=TRUE,AK23=FALSE,AK24=FALSE),6,IF(AND(AK21=TRUE,AK22=FALSE,AK23=TRUE,AK24=FALSE),7,IF(AND(AK21=TRUE,AK22=FALSE,AK23=FALSE,AK24=TRUE),8,IF(AND(AK21=FALSE,AK22=TRUE,AK23=TRUE,AK24=FALSE),9,IF(AND(AK21=FALSE,AK22=TRUE,AK23=FALSE,AK24=TRUE),10,IF(AND(AK21=FALSE,AK22=FALSE,AK23=TRUE,AK24=TRUE),11,IF(AND(AK21=TRUE,AK22=TRUE,AK23=TRUE,AK24=FALSE),12,IF(AND(AK21=TRUE,AK22=TRUE,AK23=FALSE,AK24=TRUE),13,IF(AND(AK21=TRUE,AK22=FALSE,AK23=TRUE,AK24=TRUE),14,IF(AND(AK21=FALSE,AK22=TRUE,AK23=TRUE,AK24=TRUE),15,16)))))))))))))))","v":1}]
["Site Location",null,null,null,null,null,null,null,null,null,null,null,null,"Land slope ",null,null,null,null,null,null,null,"Curb Gutter ",null,null,null,null,null,null,false,"Public St lighting",null,null,null,null,null,null,false]
["Construction progress",null,null,null,null,null,null,null,null,null,null,null,"Regularity",null,null,null,null,null,null,null,null,"Sidewalk",null,null,null,null,null,null,false,"Phone",null,null,null,null,null,null,false]
["Land Use",null,null,null,null,null,null,null,null,null,null,null,null,null,null,null,null,"Hydrography",null,null,null,null,null,null,null,null,null,null,null,"Electricity",null,null,null,null,null,null,false]
["Current Use",null,null,null,null,null,null,null,null,null,null,null,null,null,null,"Road Type",null,null,null,null,null,null,null,null,null,null,null,null,null,"Water Pipe",null,null,null,null,null,null,false]
[null,null,null,null,null,null,null,null,null,null,null,null,null,null,null,"Agricultural area"]
["*Farming type",null,null,null,null,null,null,null,null,null,null,null,null,null,null,null,null,null,null,null,null,null,"**"]
["•Value of the private Land"]
["Total value of common land(condominium)",null,null,null,null,null,null,null,null,null,null,null,null,null,null,null,null,null,null,null,null,null,null,null,null,null,null,null,null,"V%",null,{"$f":"X28*(AH19/100)","v":0}]
["#3-Construction details "]
["#","Description",null,null,null,"Age",null,"Walls",null,null,null,"Flooring",null,null,null,"Ceiling",null,null,"Baths",null,"Roof",null,"Storeys",null,"Condition",null,"Area",null,null,"Rem","Value",null,null,null,"Mark \"X\" if it is common condo construction"]
[]
[1,null,null,null,null,null,null,null,null,null,null,null,null,null,null,null,null,null,null,null,null,null,null,null,null,null,null,null,null,null,0]
[2,null,null,null,null,null,null,null,null,null,null,null,null,null,null,null,null,null,null,null,null,null,null,null,null,null,null,null,null,null,0]
[3,null,null,null,null,null,null,null,null,null,null,null,null,null,null,null,null,null,null,null,null,null,null,null,null,null,null,null,null,null,0]
[4,null,null,null,null,null,null,null,null,null,null,null,null,null,null,null,null,null,null,null,null,null,null,null,null,null,null,null,null,null,0]
[5,null,null,null,null,null,null,null,null,null,null,null,null,null,null,null,null,null,null,null,null,null,null,null,null,null,null,null,null,null,0]
[6,null,null,null,null,null,null,null,null,null,null,null,null,null,null,null,null,null,null,null,null,null,null,null,null,null,null,null,null,null,0]
[7,null,null,null,null,null,null,null,null,null,null,null,null,null,null,null,null,null,null,null,null,null,null,null,null,null,null,null,null,null,0]
[8,null,null,null,null,null,null,null,null,null,null,null,null,null,null,null,null,null,null,null,null,null,null,null,null,null,null,null,null,null,0]
[9,null,null,null,null,null,null,null,null,null,null,null,null,null,null,null,null,null,null,null,null,null,null,null,null,null,null,null,null,null,0]
[10,null,null,null,null,null,null,null,null,null,null,null,null,null,null,null,null,null,null,null,null,null,null,null,null,null,null,null,null,null,0]
["•Value of private construction",null,null,null,null,null,null,null,null,null,null,null,null,null,null,null,null,null,{"$f":"SUMIF(AK32:AK41,\"\",AE32:AH41)","v":0}]
["Total Value of Common Condo Construction",null,null,null,null,null,null,null,null,null,null,null,null,null,null,null,null,null,null,null,null,null,null,null,null,{"$f":"SUMIF(AK32:AK41,\"=X\",AE32:AH41)","v":0},null,null,null,null,"V%",{"$f":"Z43*(AH19/100)","v":0}]
["Observations\n"]
[]
["#4-Property owner declaration"]
["•Total Land Value ",null,null,null,null,null,null,null,null,null,null,null,{"$f":"P27+AF28","v":0},null,null,null,null,"Signed in the city of",null,null,null,null,null,null,null,null,null,null,{"$f":"Q1","v":"Orotina"}]
["•Total Constructions Value",null,null,null,null,null,null,null,null,null,null,null,{"$f":"S42+AF43","v":0},null,null,null,null,null,null,null,null,null,null,null,null,null,null,null,null,null,{"$f":"NOW()","v":"2020-06-04T09:03:27.830"},null,null,null,null,null,false]
["•Total property value",null,null,null,null,null,null,null,null,null,null,null,{"$f":"M47+M48","v":0},null,null,null,null,"  •Signature",null,null,null,null,null,null,null,null,null,null,null,null,"  •Date-Time "]
["•Value of % of ownership",null,null,null,null,null,null,null,null,null,null,null,{"$f":"M49*(U19/100)","v":0},null,null,null,null,"Impuesto Anual/Annual Property Tax",null,null,null,null,null,null,null,null,null,null,null,{"$f":"IF(R50=\"Impuesto Anual/Annual Property Tax\",M50*0.0025,IF(R50=\"Impuesto Trimestral/Quarterly Property Tax\",(M50*0.0025)/4,(M50*0.0025)/12))","v":0}]
[" The Municipality has the right to accept or object to the property value declaration"]
["#5-Municipality exclusive use",null,null,null,null,null,null,null,null,null,null,null,null,null,null,null,null,null,null,null,null,null,null,null,null,null,null,null,null,null,null,"Sello y firma"]
["Previous value",null,null,null,null,null,null,null,0,null,null,null,null,null,null,null,null,"Legal Zoning"]
["Received by",null,null,null,null,null,null,null,null,null,null,null,null,null,null,null,null,null,"Examination",null,null,null,null,null,null,"Date"]
["Checked by",null,null,null,null,null,null,null,null,null,null,null,null,null,null,null,null,null,"Amend",null,null,null,null,null,null,"Date"]
["Included in the system by",null,null,null,null,null,null,null,null,null,null,null,null,null,null,null,null,null,null,null,null,null,null,null,null,"Date"]

{"sheet":"#1","index":1,"n_rows":28,"n_cols":1,"rows_kept":28,"cut":false,"hidden":true,"merged":[[1048575,0,1048575,15],[5,0,5,15],[8,0,8,15],[11,0,11,15],[26,0,26,15],[14,0,14,15],[0,0,0,15],[1,0,1,15],[2,0,2,15],[17,0,17,15],[6,0,6,15],[7,0,7,15],[3,0,4,15],[9,0,10,15],[27,0,28,15],[12,0,13,15],[15,0,16,15],[18,0,19,15],[21,0,22,15],[24,0,25,15],[20,0,20,15],[23,0,23,15]],"read":"row_number_cap"}
["Form Guide"]
[]
[]
["General Instructions: The declaration must be presented by the property owner who must also provide valid ID to the municipal employee. All of the financial information in the declaration must be in Colons (¢), the official Costa Rican currency.  Additionally, all   measurements must done using the metric system (m). If the property has more than one owner, the declaration must contain the total property value and not only his/her individual percentage.In this case, the final tax is going to be calculated with the percentage of each owner"]
[]
[]
["#1- Owner details"]
[]
[]
["Full Name or Business Name: It refers to the owner’s name (or the co-owner) or the corporate name (law societies, cooperatives and solidarist associations) when the legal owner is a legal entity ; as is indicated in the Property Registry."]
[]
[]
["Mailing Address: Indicate the mailing address of property owner, in case of companies, indicate the official registered address of the legal entity. The location preferably by street names, avenues and number, or if not otherwise addressed, using established reference points such as: church, school, public buildings, bridges and others."]
[]
[]
["ID: Indicate the identification document number registered of the property owner. Choose the ID option:identity card, passport, residence card, etc. In the case of companies, indicate the corporate identification number."]
[]
[]
["Contact Telephone-Email: List your phone number in the first box and your email address in the second box. Outside of Costa Rica you must enter = Landline 123 + 0 + Country Code + City Code + Telephone Number or Cellphone enter 123 + 0 + Country Code + Telephone Number."]
[]
[]
["Legal Representative: Only when the owner is a society or in case the owner holds a legal representative which must be accredited by a certification either legal entity or the power granted for that purpose."]
[]
[]
["ID: Indicate the identification document number registered to the legal document or legal entity.Choose the ID option:identity card, passport, residence card, etc"]
[]
[]
["Full Address: Indicate the mailing address of the Legal Representative. Preferably list by street names, avenues and number, or if not otherwise addressed, using established reference points such as: church, school, public buildings, bridges and others. "]

{"sheet":"#2","index":2,"n_rows":100,"n_cols":1,"rows_kept":100,"cut":false,"hidden":true,"merged":[[93,0,93,15],[29,0,29,15],[90,0,90,15],[76,0,76,15],[56,0,56,15],[89,0,89,15],[50,0,50,15],[35,0,35,15],[81,0,81,15],[82,0,82,15],[83,0,83,15],[84,0,84,15],[15,0,16,15],[14,0,14,15],[0,0,0,15],[1,0,1,15],[2,0,2,15],[5,0,5,15],[11,0,11,15],[8,0,8,15],[3,0,4,15],[6,0,7,15],[9,0,10,15],[12,0,13,15],[17,0,17,15],[38,0,38,15],[41,0,41,15],[26,0,26,15],[20,0,20,15],[23,0,23,15],[32,0,32,15],[100,0,100,15],[71,0,71,15],[62,0,62,15],[65,0,65,15],[68,0,68,15],[96,0,96,15],[97,0,97,15],[98,0,98,15],[91,0,91,15],[99,0,99,15],[94,0,94,15],[95,0,95,15],[92,0,92,15],[85,0,85,15],[86,0,86,15],[87,0,87,15],[88,0,88,15],[77,0,77,15],[78,0,78,15],[79,0,79,15],[47,0,47,15],[80,0,80,15],[53,0,53,15],[74,0,74,15],[75,0,75,15],[72,0,73,15],[69,0,70,15],[66,0,67,15],[63,0,64,15],[33,0,34,15],[36,0,37,15],[39,0,40,15],[42,0,43,15],[45,0,46,15],[44,0,44,15],[18,0,19,15],[21,0,22,15],[24,0,25,15],[27,0,28,15],[30,0,31,15],[60,0,61,15],[57,0,58,15],[54,0,55,15],[51,0,52,15],[48,0,49,15],[59,0,59,15]]}
["#2-Propery details"]
[]
[]
["Full Property Address: All the reference points that allow locating the property. The location preferably by streets, avenues and number, or if not otherwise addressed, using established reference points such as: church, school, public buildings, bridges and others"]
[]
[]
["Notification Preference: Place or means indicated to receive notifications, either by electronic mail, fax, in boxes, on podiums or by any other technological means that allows the security of the act of communication."]
[]
[]
["Province / City / Districts: The first number in the property number designates the State/Province where the property is located. Costa Rica is composed of seven provinces {1=San José, 2=Alajuela, 3=Cartago, 4= Heredia, 5=Guanacaste, 6=Puntarenas, 7= Limón}, which in turn are divided into 81 Cities (\"cantón\" in Spanish, plural \"cantones\"), each of which is directed by a mayor. Mayors are chosen democratically every four years by the residents of each canton. The cantons are further divided into Districts. If the information is unknown consult the municipal employee. "]
[]
[]
["Property Number: Indicate the registered property number of which the value is going to be declared, it starts with the province number and is followed by six numbers. For propertys already registered, the number is assigned by the National Registry. If the number is unknown consult the municipal employee."]
[]
[]
["Duplicate: There are two cases where you will need to enter a duplicate (A, B, C, D, etc).  In 99.9% of cases, this letter will not exist and should be left blank. 1-There are rare cases where two identical property numbers were unintentionally created.  In order to remedy these situations, a letter is added after the Property´s Number to differentiate between the two. 2-For all concessions, a “Z” will be entered in the duplicate field, “Z” is required for all concessions. "]
[]
[]
["Affiliate Owners: Oftentimes an F (Affiliate Owners) or an M (Primary Property Numer) is added into the property’s number. These are usually associated with condominiums or office buildings with multiple floors. This letter may or may not exist in the property´s number.  If it does not, it should be left blank. "]
[]
[]
["Owner number: Represent a percentage/portion of usage among a number of other percentage/portion of usage on the property.  90% of the time, this number will be -000.  This denotes full ownership of the property in question. However there are cases where multiple percenetages of use will be issued to the same property.  For example, I decide to buy a 1000 m2 tract of land with my 3 brothers.  We agree to take 200m2 to build our individual houses, and leave the remaining 200m2 for a swimming pool to which we all share access.  The property’s number may look like this: 01-523554-001, 01-523554-002, 01-523554-003, 01-523554-004.  In this way, each of our interests are protected because we have a 25% (this is the ownership percentage) of land’s claim as a whole.  I can sell my house at any time and transfer that right to another party. A FORM MUST BE COMPLETED FOR EACH RIGHT "]
[]
[]
["#Co-ownership: Indicate how many co-owners there are in total."]
[]
[]
["Property’s Stake: When the property belongs to a single owner, you have 100% possession. If the property has several owners, the portion that corresponds to each one will be indicated in percentage terms. In these cases, use a form for every co-owner. When the proportion is expressed in another way, for example in fractions, proportion in Colons (¢) or proportion in area will be transformed into percentage terms. Example:\n\nFraction = Owner of 13/54 in the property Proportion = 24%\nColons = Owner of 124.73 proportional to 150.00 colons on the property proportion.\nProportion = Owner of 100 proportional to 800 Colons on the property Proportion = 12.5%"]
[]
[]
["Common area ownership %: Do this only if the real estate is within a condominium, in that case indicate the percentage it claims of the common areas of the condominium "]
[]
[]
["Area: Indicate the registry area of the land to be declared (you can check the information on the Registered Deed # or in the Costa Rica National Register information). In the case of several property owners indicate the total area of the property."]
[]
[]
["Registered Deed #: It is the assigned property map number. If there is only one drawing without cadastral register, it will be written \"Unofficial\" and if there is no property drawing it will be written \"No Plan\", but in these last two conditions the municipality must pay special attention to the position of properties in relation to other properties, drawing or checking the Geographical Information System (GIS) in case that exist."]
[]
[]
["Registered: If the property is registered in the Costa Rican National Registry, mark \"YES\". Otherwise mark \"NO\". "]
[]
[]
["Usufruct: The real right of somone to enjoy the property that belongs to another person, for a certain time or for life."]
[]
[]
["Domain: The use, enjoyment or dispostion of the property, united in one person who is the owner."]
[]
[]
["Land possession: A real estate holder who lacks a registered title (Possessory Information Act) or who is registrable in the Public Registry."]
[]
[]
["INDER plot: They may be natural or legal persons, the latter being non-profit, integrated into the rural development processes arising from the application of Law 9036."]
[]
[]
["Precarious: Permission to use the public domain, and other acts that recognize an administered a right expressly and validly precarious title."]
[]
[]
["Marine Area: The terrestrial maritime zone constitutes part of the national patrimony, belongs to the State and is inalienable and imprescriptible. The terrestrial maritime zone is made up of two sections: the PUBLIC ZONE, which is the fifty-metre wide strip from the ordinary high tide, and the areas that are exposed during low tide; and the RESTRICTED ZONE, made up of the one hundred and fifty-metre remaining strip, or the other land in the case of islands."]
[]
[]
["Current Use: Indicate whether the property is vacant, residential, commercial, industrial, mixed, tourist, educational, recreational, religious, under construction or agricultural. In case the property has 2 uses put the predominant and in the observations put the other uses it has."]
[]
[]
["Agricultural area: Only when it is designated agricultural use, you must indicate the specific area used for such purpose."]
[]
[]
["Farming type: Only when it is desginated agricultural use, you must indicate the farming type for such purpose. If the option corresponds to others, then you must fill in theactivity (**) "]
[]
[]
["Value of the private Land: Indicate the total value of the land to be declared."]
[]
[]
["Total value of common land(condominium): Refers to the part of the land that becomes property of all the condominium owners and is intended for general use and can not be constructed upon. Indicate the total value of the common ground."]
[]
[]
["Access Level (m): It’s the property height difference relative to the road. Indicate if it is above/ even / low, is positive (+) when the property is above level, negative (-) when it is below level and zero (0) when it is even."]
[]
[]
["Land Slope: Indicate the slope. It is expressed in percentage terms. Thus, a terrain with a slope of 45 degrees has a slope of 100%. In order to determine the slope of a particular farm, a clinometer can be used, either on larger lands, the cartographic sheets of the National Geographic Institute or any other that indicates the contour lines. In the percentage space, indicate if they are flat (0-3%), Slightly wavy (3-8%), Moderately wavy (8-15%), Wavy (15-30%), Strongly wavy (30- 60%), Steep (60- 75%) and very steep (more than 75%)."]
[]
[]
["Road: According to the classification given by the O. N. T Refers to the type of road that allows access to the property, which indicates the quality of the material and importance of the track."]
[]
["Public Services 1 (SP1): (Sidewalk, Curb and Street Gutter) and Public Services 2 (SP2): (Water Pipe, electricity, telephone and public street lighting) will indicate whether the property has access to these services or not, is marked in the right box if it has access otherwise it is not marked"]
[]
[]
[]
["Regularity: It is the property shape in respect to a perfect square or rectangle. It is advisable to take it from the cadastral map, the cadastral sheets or the aerial photograph. If these tools are not available, the municipal employee should estimate them in the field. It is defined as the shape or configuration of the circumscribed rectangle, the code goes from 0.1 to 1, with 1 = Regular. If you do not know how to calculate it, consult a municipal employee. "]
[]
[]
["Land Use: According to the O.N.T classification refers to the capacity of land use in agricultural and forestry activities. This information is exclusive for rural farms. It refers to the agrological conditions of the property (fertility and soil productivity) It is classified into eight classes, according to its usefulness in annual agriculture, perennial, livestock, forest use and protection forest, taking into account the need to use practices of management and conservation of soils, topography, humidity, seeing, stoniness and temperature of the area, among others.It is classified as (1) the property that presents the best conditions and as (8), the one that contains the greatest amount of limitations."]
[]
[]
["Hydrological Conditions: According to the O.N.T classification, it estimates the availability of water for different purposes: agricultural, livestock, etc. The sources of water supply that the property possesses: rainwater, rivers, canals or water straw, well and pipe, plus the rainfall regime of the area where the property is located. It is important only in buildings located in rural areas."]
[]
[]
["Front: Main front where the property is accessed, or the main access in case the farm has several fronts, in the case of vacant lots the front of the main road will be used, as long as there is direct access to the same and will be measured in linear meters, you can use what is indicated in the available cadastral map or that is derived from the field inspection."]
[]
[]
["Site location: It is the location of a lot with respect to its total number of entrances in the urban quadrant. 1. The whole block, 2. Three fronts together to public Street, 3. Two fronts together to public Street, 4. Two separate fronts to public Street, 5- One front to public Street, 6- lot located in a side alley, 7- Alley in the background."]

{"sheet":"#3","index":3,"n_rows":67,"n_cols":14,"rows_kept":67,"cut":false,"hidden":true,"merged":[[63,0,64,15],[66,0,67,15],[24,0,25,15],[38,0,39,15],[41,0,42,15],[44,0,45,15],[47,0,48,15],[7,0,7,15],[12,0,13,15],[15,0,16,15],[18,0,19,15],[21,0,22,15],[23,0,23,15],[62,0,62,15],[1048567,0,1048567,15],[40,0,40,15],[46,0,46,15],[36,13,36,15],[35,13,35,15],[37,0,37,15],[36,1,36,4],[33,13,33,15],[43,0,43,15],[36,5,36,8],[36,9,36,12],[52,0,52,15],[51,0,51,15],[53,0,53,15],[56,0,56,15],[59,0,59,15],[54,0,55,15],[57,0,58,15],[60,0,61,15],[65,0,65,15],[32,1,32,4],[27,5,27,8],[32,5,32,8],[27,9,27,12],[28,9,28,12],[29,9,29,12],[30,9,31,12],[29,5,29,8],[30,5,31,8],[28,5,28,8],[32,9,32,12],[33,5,33,8],[34,5,34,8],[35,5,35,8],[27,1,27,4],[28,1,28,4],[27,13,27,15],[28,13,28,15],[26,0,26,15],[29,1,29,4],[30,1,31,4],[34,1,34,4],[35,1,35,4],[33,1,33,4],[49,0,49,15],[17,0,17,15],[20,0,20,15],[35,9,35,12],[33,9,33,12],[29,13,29,15],[30,13,31,15],[32,13,32,15],[34,13,34,15],[34,9,34,12],[30,0,31,0],[5,0,5,15],[6,0,6,15],[8,0,8,15],[9,0,9,15],[10,0,10,15],[11,0,11,15],[14,0,14,15],[0,0,0,15],[1,0,1,15],[2,0,2,15],[3,0,3,15],[4,0,4,15]]}
["#3-Construction Details "]
[]
["Description: Indicates what type of construction it refers to (house, apartment, building, warehouse, commercial premises, swimming pool, ranch, cabin, shopping center, cabin, hotel, restaurant, hospital, warehouses, gymnasiums, etc.)"]
[]
["Age: Indicate the age in years for each structure. "]
[]
["Walls: Indicate the material used in the walls of each structure."]
[]
["Flooring: Indicate the materials used in the floors of each structure. "]
[]
["Ceiling: Indicate the materials used in the ceilings of each structure."]
[]
["Bathrooms: Indicate how many bathrooms are in the structure, if the bathroom only has a toilet and sink, then it is considered a \"half bath\"."]
[]
[]
["Roof: Indicate the materials used in the roof of each structure. "]
[]
[]
["Floors/Levels: Indicate how many floors/levels are in the structure."]
[]
[]
["Predominant Material: In the previous boxes you have to indicate the number that corresponds to the majority of construction materials in every structure."]
[]
[]
["Condition: It is the state of conservation in which each structure is located. Select \"OP\" optimal, \"MB\" very good, \"B\" good, \"I\" intermediate, \"R\" regular, \"D\" deficient, \"M\" bad, \"MM\" very bad and \"DM\" demolition."]
[]
[]
["#","Walls",null,null,null,"Flooring",null,null,null,"Ceiling",null,null,null,"Roof"]
[1,"Block",null,null,null,"Wood",null,null,null,"Chipboard",null,null,null,"Galvanized iron sheet"]
[2,"Brick",null,null,null,"Rubble",null,null,null,"Laminated Wood",null,null,null,"Clay tile"]
[3," Prefabricated",null,null,null,"Mosaic",null,null,null,"Fibre-cement",null,null,null,"Enameled, structural"]
[]
[4,"Reinforced Concrete",null,null,null,"Terrazzo",null,null,null," Clapboard",null,null,null," Other (specify)"]
[5,"Wood",null,null,null,"Ceramic",null,null,null,"Cast"]
[6,"Galvanized Iron",null,null,null,"Porcelain",null,null,null," Craft"]
[7,"Fibre-cement",null,null,null,"Marble",null,null,null," Concrete Slab"]
[8,"Other (specify)",null,null,null,"Other (specify)",null,null,null,"Other (specify)"]
[]
["Total area: Indicate the total area, in square meters, of each structure. "]
[]
[]
["Remodeling: If the building has a remodel mark the cell, and in the observations detail the changes made as well as the years of the remodel, either one or more."]
[]
[]
["Value ¢: Indicate the total value that will be assigned to each structure. "]
[]
[]
["Mark \"X\" if it is common condo constr: In the event that the property is located within a condominium and has constructions of general or restricted use, depending on whether they are intended for the use and exploitation of all the affiliates or only some of them, the common things belong to all the owners of the condominium, who have in them a proportional right to the percentage represented by the area set for their filial property within the condominium (art. 9), including land, constructions, installations and complementary works. If you do not know the construction data, consult the municipal employee."]
[]
[]
[]
["Municipal Use Only"]
[]
[]
["Condition: It is the state of conservation in which each structure is located. Select \"OP\" optimal, \"MB\" very good, \"B\" good, \"I\" intermediate, \"R\" regular, \"D\" deficient, \"M\" bad, \"MM\" very bad and \"DM\" demolition."]
[]
[]
["Typology: The typology is defined according to the characteristics of the construction. The manual of basic values by constructive typology elaborates and publishes in the official newspaper of Costa Rica by the Organ of Technical Normalization, contains the codes assigned to each one of the constructions, installations and complementary works and the description of each one of them. For each construction the materials are detailed, for the installations and complementary works a general description is made."]
[]
[]
["Lifespan: Lifespan of the structure refers to the total probable life according to the Manual of Unit Base Values by Constructive Typology provided by the Ministerio de Hacienda-Órgano de Normalización Técnica. The years can be extended by a valuation expert."]
[]
[]
["Value of private construction: Automatically add the value of all the construccions that were added previously."]
[]
[]
["Total Value of Common Condo Construction: Indicate in the space next to the value an “x” if the construction corresponds to the constructions that remain in co-ownership, these are  indivisible areas and have a general and common use. To be added in this box and determine the total value. In this way it will be added in this box and it determines the value that corresponds to the condominium percentage."]

{"sheet":"#4","index":4,"n_rows":19,"n_cols":1,"rows_kept":19,"cut":false,"hidden":true,"merged":[[1048575,0,1048575,15],[14,0,14,15],[17,0,17,15],[18,0,19,15],[15,0,16,15],[0,0,0,15],[1,0,1,15],[2,0,2,15],[5,0,5,15],[8,0,8,15],[12,0,13,15],[9,0,10,15],[6,0,7,15],[3,0,4,15],[11,0,11,15]],"read":"row_number_cap"}
["#4-Property Owner Declaration"]
[]
[]
["Total Land Value: It is the property value of the private land. In case of being condominium property, it will be the sum of the two values, private land and common ground (what corresponds to the percentage of condominium). "]
[]
[]
["Total Construction Value: It is the value of the private construction. In case of being condominium property, it will be the sum of the two values, private construction and common construction (which corresponds to the percentage of condominium). "]
[]
[]
["Total Property Value: The sum of the previous two. "]
[]
[]
["Value of % of ownership: In the case of several owners,it is obtained from the product of the total value by its corresponding possession percentage."]
[]
[]
["Choose an option to calculate the taxes: Annual Property Tax, Quarterly Property Tax or Monthly Property Tax"]
[]
[]
["Property owner’s signature: Sign on the line as the declarant or legal representative (in the case of companies). The signature must be the same as the signature that appears on the ID. "]

{"sheet":"#5","index":5,"n_rows":8,"n_cols":1,"rows_kept":8,"cut":false,"hidden":true,"merged":[[3,0,3,15],[0,0,0,15],[1,0,1,15],[2,0,2,15],[1048523,0,1048523,15],[6,0,6,15],[4,0,5,15],[7,0,8,15]],"read":"row_number_cap"}
["Municipal Use Only / Assessment Process"]
[]
[]
[]
["Legal zoning: Homogeneous zones provided by the Ministerio de Hacienda-Órgano de Normalización Técnica. If the information is unknown consult the municipal employee. ."]
[]
[]
["Observations: Listed are those aspects that are considered important, special conditions of the property that are not listed in the rest of the form, for example: problems of drainage, landslides, affectation by river, remodeling, etc"]

{"sheet":"Hidrografía","index":6,"n_rows":0,"n_cols":0,"rows_kept":0,"cut":false,"hidden":true,"merged":[]}

{"sheet":"Regularidad","index":7,"n_rows":7,"n_cols":7,"rows_kept":7,"cut":false,"hidden":true,"merged":[]}
[]
[]
[]
[]
[]
[]
[null,null,null,null,null,null,"Menor Rectangulo Circunscrito"]

{"sheet":"Servicios Públicos","index":8,"n_rows":0,"n_cols":0,"rows_kept":0,"cut":false,"hidden":true,"merged":[]}

{"sheet":"Vía","index":9,"n_rows":13,"n_cols":2,"rows_kept":13,"cut":false,"hidden":true,"merged":[[0,0,0,1],[1,0,1,1]]}
["TIPO DE VÍA                                         DESCRIPCIÓN"]
[]
["1","Ubicación: Sector más valioso y de mayor desarrollo comercial.\nMateriales: Asfalto, concreto, lastre, y otros.\nOtros: Tránsito denso, clasificación independientemente del material, estado y ancho, entre otros."]
["2","Ubicación: Zonas comerciales de menor desarrollo, zonas industriales o algunas zonas residenciales de clasificación alta.\nMateriales: Asfalto, concreto, lastre, y otros.\nOtros: Tránsito denso, clasificación  independientemente del material, estado y ancho, entre otros."]
["3","Ubicación: Zonas de transición comercial-residencial o residencial e industrial.\nMateriales: Asfalto, concreto, lastre, y otros.\nOtros: Características de menor condición que la vía 2."]
["4","Ubicación: Sectores residenciales, industriales y algunas zonas agropecuarias.\nMateriales: Asfalto, concreto y lastre.\nOtros: Permiten la circulación de too tipo de vehículos."]
["5","Ubicación: Sectores residenciales, industriales y agropecuarios. Se incluyen alamedas.\nMateriales: Arenoso y material grueso.\nOtros: Permiten  la  circulación a todo tipo de vehículos."]
["6","Ubicación: Generalmente en zonas agropecuarias.\nMateriales: Lastre, arenoso o de tierra.\nOtros: Permiten la circulación de vehículos durante todo el año."]
["7","Ubicación: Generalmente en zonas agropecuarias.\nMateriales: Grueso, tierra o arcilla.\nOtros: Permiten la circulación de vehículos solo en época seca."]
["8","Ubicación: Generalmente en zonas agropecuarias.\nMateriales: Tierra o arcilla.\nOtros: Permiten únicamente el paso de carretas, bestias y peatones."]
["9","Ubicación: Servidumbres de paso. Materiales: Tierra, arcilla, otros. Otros: Vías angostas."]
["10","Ubicación: Ríos, canales, esteros o mar.\nOtros: Vía fluvial, único acceso al inmueble."]
["11","Ubicación: Vía férrea.\nOtros: Única vía de acceso al inmueble."]

{"sheet":"Ubicación","index":10,"n_rows":20,"n_cols":3,"rows_kept":20,"cut":false,"hidden":true,"merged":[]}
[]
[]
[]
[]
[]
[]
[]
[]
[]
[]
[]
[]
[]
[]
[]
[]
[]
[]
[]
[null,null,"Calle Pública"]

{"sheet":"Uso de Suelo","index":11,"n_rows":70,"n_cols":2,"rows_kept":70,"cut":false,"hidden":true,"merged":[[37,0,67,7],[69,0,80,7],[0,0,0,1],[13,0,35,7]]}
["FERTILIDAD Y LABORABILIDAD"]
["ESTADO","CLASE"]
["Excelente","I"]
["Muy bueno óptimo","II"]
["Muy bueno regular","III"]
["Bueno","IV"]
["Regular óptimo","V"]
["Regular-regular","VI"]
["Regular malo","VII"]
["Malo","VIII"]
[]
[]
[]
["Para mayores detalles en la determinación del tipo de suelo de la finca por valorar se adjunta la siguiente información:\n\nClase I (Excelente) Dentro de ésta clase se incluyen tierras con pocas o ninguna limitación para el desarrollo de actividades agrícolas, pecuarias o forestales adaptadas ecológicamente a la zona. Ésta clase presenta pendientes de 0 a 3 %.\nLas tierras de ésta clase se encuentran en superficies planas o casi planas, con erosión sufrida nula, con suelos muy profundos, de textura media en el suelo y de moderadamente gruesa a moderadamente fina en el subsuelo, sin piedras, sin problemas de toxicidad y salinidad, drenaje bueno, sin riesgo de inundación, en zonas de vida de condición húmeda, período seco moderado y sin efectos adversos por neblina y viento. \n\nClase II (Muy bueno - Óptimo) Las tierras de esta clase presentan leves limitaciones que solas o combinadas reducen la posibilidad de elección de actividades o se incrementan los costos de producción debido a la necesidad de usar prácticas de manejo y conservación de suelos. Esta clase presenta pendientes de 3 a 8 %.\nLas  limitaciones que  pueden  presentar  son: relieve ligeramente  ondulado, erosión sufrida leve, suelos profundos, texturas moderadamente finas o moderadamente gruesas en el subsuelo. Ligeramente pedregosos, fertilidad media, toxicidad y salinidad leves, drenaje moderadamente excesivo o moderadamente lento, riesgo de inundación leve,  zonas de  vida  seca  o  muy  húmedas, con  período seco  fuerte  o  ausente y condición de neblina y viento moderada.\n\nClase III (Muy bueno - Regular) Las tierras de esta clase presentan leves limitaciones o combinadas que restringen la elección de los cultivos o incrementan los costos de producción. Esta clase presenta pendientes de 3 a 15%.\nPara desarrollar los cultivos anuales se requieren prácticas intensivas de manejo y conservación de suelos y agua.\nEntre las limitantes presentes de esta clase están: relieve moderadamente ondulado, erosión sufrida leve, suelos moderadamente profundos, texturas en el suelo y subsuelo finas  o   moderadamente  gruesas,  moderadamente  pedregosos,  fertilidad  media, toxicidad  moderada,  salinidad  leve,  drenaje  moderadamente excesivo  o moderadamente lento, riesgo de inundación moderado, zonas de vida seca o muy húmedas, con período seco fuerte o ausente, condición de neblina y viento moderado.\n"]
[]
[]
[]
[]
[]
[]
[]
[]
[]
[]
[]
[]
[]
[]
[]
[]
[]
[]
[]
[]
[]
[]
[]
["Clase IV (Bueno) Las tierras de esta clase presentan fuertes limitaciones, solas o combinadas, que restringen su uso a vegetación semi-permanente y permanente.\nLa pendiente en esta clase presenta pendientes menores de 30%. Los  cultivos anuales se  pueden desarrollar únicamente en  forma  ocasional  y  con prácticas muy intensivas de manejo y conservación de suelos y aguas excepto de climas pluviales, donde este tipo de cultivo no es recomendable.\nLas limitaciones que se pueden presentar solas o combinadas son: relieve ondulado, erosión sufrida moderada, suelos moderadamente profundos, texturas en el suelo y en el  subsuelo  muy  finas  o  moderadamente  gruesas,  pedregosos,  fertilidad  media, toxicidad moderada, salinidad leve, drenaje moderadamente lento o moderadamente excesivo,  riesgo  de  inundación  moderado,  zonas  de  vida  seca,  muy  húmedas  y pluviales, con período seco fuerte o ausente, condición de neblina y viento moderado.\n\nClase V (Regular - Óptimo) Las tierras de esta clase presentan severas limitaciones para el desarrollo de cultivos anuales, semi-permanentes, permanentes o bosque, por lo cual su uso se restringe para pastoreo o manejo de bosque natural.\nLas limitaciones que pueden ocurrir, solas o combinadas cuando la pendiente es inferior al 15% son: relieve moderadamente ondulado, erosión sufrida moderada, suelos poco profundos,  las  texturas  de  la  tierra  y  subsuelo  pueden  ser  de  finas  a  gruesas, fuertemente  pedregosas,  muy  baja  fertilidad,  toxicidad  fuerte,  salinidad  moderada, drenaje muy lento o excesivo, riesgo de inundación severo, zonas de vida seca y pluviales, con período seco fuerte o ausente, condición de neblina y viento fuerte. También podrían presentarse las siguientes limitaciones cuando la pendiente oscila entre 15% y 30%: relieve ondulado, erosión sufrida moderada, suelos poco profundos, texturas en el suelo moderadamente gruesas o finas y en el subsuelo de muy finas a gruesas,  fuertemente  pedregosos,  muy  baja  fertilidad,  toxicidad  fuerte,  salinidad moderada, drenaje muy lento o excesivo, riesgo de inundación severa, zonas de vida seca y muy húmeda excepto bosque muy húmedo tropical, con período seco fuerte o ausente, condición de neblina y viento fuerte. \n\nClase VI (Regular – Regular) Las tierras ubicadas dentro de esta clase son utilizadas para la producción forestal, así como cultivos permanentes tales como frutales y café, aunque estos últimos requieren prácticas intensivas de  manejo y  conservación de suelos y aguas. Sin embargo, algunas especies forestales como  la  teca (Tectona grandis) y melina (Gmelina arborea), en plantaciones puras no son adecuadas para las pendientes de esta clase, debido a que aceleran los procesos de erosión de suelos, por lo que se recomienda este tipo de uso sólo en relieves moderadamente ondulados a ondulados.\nLa pendiente en esta clase presenta pendientes menores de 50%. Las limitaciones que se pueden presentar, solas o combinadas son: relieve fuertemente ondulado, erosión sufrida severa, suelos moderadamente profundos, texturas en el suelo de muy finas a gruesas, en el subsuelo de muy finas a moderadamente gruesas, fuertemente pedregosos, muy baja fertilidad, toxicidad fuerte, salinidad moderada, drenaje moderadamente excesivo o moderadamente lento, riesgo de inundación moderado, zonas  de  vida  seca  y  pluviales  excepto  páramo,  período  seco  fuerte  o  ausente, condición de neblina y viento moderado.\n"]
[]
[]
[]
[]
[]
[]
[]
[]
[]
[]
[]
[]
[]
[]
[]
[]
[]
[]
[]
[]
[]
[]
[]
[]
[]
[]
[]
[]
[]
[]
[]
["Clase VII   (Regular – Malo) Las tierras de esta clase tienen severas limitaciones por lo cual se permite el manejo forestal en caso de cobertura boscosa. En aquellos casos en que el uso actual sea diferente al bosque, se procurará la restauración forestal por medio de la regeneración natural. La pendiente en esta clase presenta pendientes menores de 75 %.\nLas limitaciones que se pueden presentar solas o combinadas son: relieve escarpado, erosión sufrida severa, suelos poco profundos, texturas en el  suelo y subsuelo de muy finas a  gruesas, fuertemente pedregosas, muy  baja fertilidad, toxicidad y salinidad fuertes, drenaje excesivo o nulo, riesgo de inundación muy severo, zonas de vida seca y pluviales excepto páramo, período seco fuerte o ausente, condición de neblina y viento fuerte.\n\nClase VIII   (Malo) Estas tierras no reúnen las condiciones mínimas para actividades de producción agropecuaria o forestal alguna. Las tierras de esta clase tienen utilidad sólo como zonas de preservación de flora y fauna, protección de áreas de recarga acuífera, reserva genética y belleza escénica. Para esta clase se incluye cualquier categoría de parámetros limitantes. Para ampliar aún más el criterio para la determinación de la clase de suelo se adjunta el siguiente cuadro.\n"]

{"sheet":"Ingles-Español","index":12,"n_rows":47,"n_cols":17,"rows_kept":47,"cut":false,"hidden":true,"merged":[[40,0,40,3],[31,0,31,1],[13,6,13,7],[13,12,13,13],[15,0,15,2],[15,3,15,4],[15,5,15,7],[15,8,15,10],[15,11,15,13],[14,11,14,13],[14,0,14,2],[14,8,14,10],[14,5,14,7],[39,0,39,3],[28,6,28,16],[26,13,26,14],[43,11,43,12],[44,11,44,12],[45,11,45,12],[46,11,46,12],[43,0,43,9],[44,0,44,9],[45,0,45,9],[46,0,46,9],[32,4,32,5],[32,7,32,8],[32,9,32,10],[30,7,30,8],[30,4,30,5],[16,0,16,1],[27,13,27,14],[32,0,32,1],[34,0,34,16],[28,0,28,5],[31,4,31,5],[31,7,31,8],[31,9,31,10],[32,15,32,16],[30,15,30,16],[31,15,31,16],[29,0,29,16],[26,15,26,16],[27,15,27,16],[23,0,23,2],[19,0,19,2],[14,14,14,16],[14,3,14,4],[16,14,16,16],[0,13,0,14],[17,0,17,16],[15,14,15,16],[1,13,1,14],[0,15,0,16],[1,15,1,16],[5,0,5,16],[4,0,4,16],[11,0,11,16],[7,0,7,1],[0,4,0,11],[1,3,1,12],[13,0,13,1],[19,13,19,16],[18,7,18,9],[18,11,18,12],[39,5,39,6],[19,3,19,9],[23,9,23,12],[23,3,23,8],[22,6,22,8],[18,2,18,4],[19,10,19,12],[38,14,38,16],[33,7,33,16],[33,0,33,6],[35,7,36,16],[30,9,30,10],[30,0,30,1],[42,0,42,12],[42,13,46,16],[2,3,2,12],[41,9,41,12],[41,13,41,16],[40,7,40,16],[35,0,35,6],[36,0,36,6],[37,0,37,6],[38,0,38,6],[39,7,39,16],[8,0,8,1],[8,6,8,9],[18,0,18,1],[18,5,18,6],[24,13,24,16]]}
[null,null,null,null,"Borough of_______ Municipalidad de______",null,null,null,null,null,null,null,null,"Next Return",null,"Próx Dec"]
[null,null,null,"Estate Tax Return Declaración de Bienes Inmuebles",null,null,null,null,null,null,null,null,null,"Return N°",null,"#Declarac"]
[null,null,null,"Law 7509 and it's Reforms Ley 7509 y sus Reformas"]
[]
["Use a form for every right of the real state Utilice un formulario por derecho"]
["#1-Owner's details Datos del Propietario"]
["Full Name or Business Name",null,null,null,"Nombre o Razón Social"]
["Residence",null,"Domicilio"]
["Identity Card",null,"Identificación",null,null,null,"Contact Telephone/Email",null,null,null,"Telefono/Correo Electrónico"]
["Legal Representative (in case of companies)",null,null,null,null,null,"Representante Legal (en caso de compañias)"]
["Legal Representative's full address",null,null,null,null,"Dirección Completa del representante legal"]
["#2-Ownership details Datos del Inmueble"]
["Real State's Full Address",null,null,null,"Dirección completa (del inmueble)"]
["State",null,"Provincia",null,null,null,"County",null,"Cantón",null,null,null,"City",null,"Distrito"]
["Property's Number",null,null,"Duplicate",null,"Adjacent land lots",null,null,"#Right in Rem",null,null,"Register area",null,null,"# Co-ownership"]
["Número Finca",null,null,"Duplicado",null,"Horizontal",null,null,"# Derecho",null,null,"Área ",null,null,"#Co-propietarios"]
["Cadastre",null,"Plano Catastro",null,"Ownership percentage",null,null,null,"% Derecho",null,"Percentage per condominium",null,null,null,"% Condominio"]
["#3-Lot Features Características del terreno"]
["Site location",null,"Ubicación",null,null,"Legal zoning",null,"Zona Homogenea",null,null,"Front","Frente",null,"Regularity",null,"Regularidad"]
["Access Level (m)",null,null,"Road Type Vía",null,null,null,null,null,null,"Public services 1",null,null,"Public services 2"]
["Above ",null,"Sobre","Paved",null,"Asfalto","Access-easement ",null,null,"Servidumbre","Curb ",null,"Cordón","Water Pipe",null,null,"Cañer"]
["Even ",null,"Nivel","Ballast ",null,"Lastre","Narrow pathway",null,null,"Alameda","Street Glutter",null,"Caño","Phone",null,null,"Telef"]
["Low ",null,"Bajo","Dirt lane",null,"Tierra","Cobbled",null,null,"Adoquín","Sidewalk",null,"Acera","Electricity",null,null,"Electr"]
["Land slope Pendiente",null,null,"Land Use Uso Actual",null,null,null,null,null,"Current Status Avance Obra",null,null,null,"Public street lighting",null,null,"Al. Pub"]
["Undulating",null,"Ondu","Commercial",null,null,"Educational",null,null,"Unused",null,null,"Vacio","Registered Inscrito"]
["Steep",null,"Queb","Residential",null,null,"Recreational",null,null,"Built up",null,null,"Const","Yes",null,"No"]
["Very steep",null,"Muy Q","Industrial",null,null,"Religious",null,null,"Under construction",null,null,"En Pr","Usufruct ",null,"Usufructo"]
["Percentage",null,"%","Agricultural",null,null,"Mixed",null,null,"Construc progress",null,null,"%","Domain",null,"Dominio"]
["Land's Value ¢ Valor Terreno",null,null,null,null,null,"Land's Value(condominium) ¢ Valor Terreno Común en Condominio"]
["#4-Construction details Detalles de Construcción"]
["Typology ",null,"Age","Status","Lifespan",null,"Walls","Flooring",null,"Ceiling",null,"Roof","Baths","Floors ","Area","Value ¢"]
["Tipología",null,"Edad","Estado","Vida Útil",null,"Pared","Piso",null,"Cieloraso",null,"Techo","Baños","Pisos","Área","Valor"]
[]
["Constructions's Value ¢ Valor Construcción",null,null,null,null,null,null,"Constructions Value(condominium) ¢ Valor Construcción Común"]
["#5-Owner Tax Return Declaración del propietario"]
["Total Land's Value ¢ Valor Total Terreno",null,null,null,null,null,null,"I pronunce that the information provided in the tax form is complete accurate Declaro que la información aquí proporcionada es veráz"]
["Total Constructions Value ¢ Valor Total Construc"]
["Total ¢ Valor Total del Inmueble",null,null,null,null,null,null,"Signed in the city of",null,null,"Firmo en la ciudad de",null,null,null,"_____","_____","_____"]
["Legal's Right Value ¢ Valor del Derecho",null,null,null,null,null,null,null,null,null,null,null,null,null,"Date Fecha"]
["Tax rate Tasa del Impuesto",null,null,null,null,2.5000000000000001E-3,null,"_________________________________________"]
["Annual Property Tax ¢ ",null,null,null,"Impuesto Anual",null,null,"Owner's Signature  Firma"]
["Return Examination",null,null,"Para Fiscalizar",null,"Yes",null,"No",null,"Quarterly Property Tax ¢",null,null,null,"Impuesto Trimestral"]
["County exclusive use/Valuation process Uso Municipal/Proceso de Valoración",null,null,null,null,null,null,null,null,null,null,null,null,"Sello Municipal"]
["N° de GIS",null,null,null,null,null,null,null,null,null,"Fecha"]
["Revisó",null,null,null,null,null,null,null,null,null,"Fecha"]
["Fiscalizó",null,null,null,null,null,null,null,null,null,"Fecha"]
["Incluyo en el sistema",null,null,null,null,null,null,null,null,null,"Fecha"]

{"sheet":"Datos","index":13,"n_rows":486,"n_cols":16,"rows_kept":486,"cut":false,"hidden":true,"merged":[]}
["Provincia","Canton","Distrito",null,null,"Filtros",null,"Provincias","Cantones Match","Cantones Unicos","Cantones Ordenados","Rangos","Distritos Match","Distritos Unicos","Distritos Ordenados","Rangos"]
["1-San José","1-San José","1-Carmen",null,"Provincia",{"$f":"'Español-Ingles'!F16","v":"2-Alajuela"},null,"1-San José",{"$f":"IF(A2=F$2,B2,\"\")","v":""},{"$f":"IFERROR(INDEX(I$2:I$486,MATCH(0,COUNTIF(J$1:J1,I$2:I$486),0)),\"\")","v":""},{"$f":"IF(J$2=\"\",J3,J2)","v":"1-Alajuela"},{"$f":"IF(K2=\"\",ROW(K2),\"\")","v":""},{"$f":"IF(AND(A2=F$2,B2=F$3),C2,\"\")","v":""},{"$f":"IFERROR(INDEX(M$2:M$486,MATCH(0,COUNTIF(N$1:N1,M$2:M$486),0)),\"\")","v":""},{"$f":"IF(N$2=\"\",N3,N2)","v":""},{"$f":"IF(O2=\"\",ROW(O2),\"\")","v":2}]
["1-San José","1-San José","2-Merced",null,"Canton",{"$f":"'Español-Ingles'!O16","v":0},null,"2-Alajuela","",{"$f":"IFERROR(INDEX(I$2:I$486,MATCH(0,COUNTIF(J$1:J2,I$2:I$486),0)),\"\")","v":"1-Alajuela"},"2-San Ramón","",{"$f":"IF(AND(A3=F$2,B3=F$3),C3,\"\")","v":""},{"$f":"IFERROR(INDEX(M$2:M$486,MATCH(0,COUNTIF(N$1:N2,M$2:M$486),0)),\"\")","v":""},"",3]
["1-San José","1-San José","3-Hospital",null,"Distrito",{"$f":"'Español-Ingles'!AB16","v":0},null,"3-Cartago","",{"$f":"IFERROR(INDEX(I$2:I$486,MATCH(0,COUNTIF(J$1:J3,I$2:I$486),0)),\"\")","v":"2-San Ramón"},"3-Grecia","","",{"$f":"IFERROR(INDEX(M$2:M$486,MATCH(0,COUNTIF(N$1:N3,M$2:M$486),0)),\"\")","v":""},"",4]
["1-San José","1-San José","4-Catedral",null,null,null,null,"4-Heredia","",{"$f":"IFERROR(INDEX(I$2:I$486,MATCH(0,COUNTIF(J$1:J4,I$2:I$486),0)),\"\")","v":"3-Grecia"},"4-San Mateo","","",{"$f":"IFERROR(INDEX(M$2:M$486,MATCH(0,COUNTIF(N$1:N4,M$2:M$486),0)),\"\")","v":""},"",5]
["1-San José","1-San José","5-Zapote",null,null,null,null,"5-Guanacaste","",{"$f":"IFERROR(INDEX(I$2:I$486,MATCH(0,COUNTIF(J$1:J5,I$2:I$486),0)),\"\")","v":"4-San Mateo"},"5-Atenas","","",{"$f":"IFERROR(INDEX(M$2:M$486,MATCH(0,COUNTIF(N$1:N5,M$2:M$486),0)),\"\")","v":""},"",6]
["1-San José","1-San José","6-San Francisco de Dos Rios",null,null,null,null,"6-Puntarenas","",{"$f":"IFERROR(INDEX(I$2:I$486,MATCH(0,COUNTIF(J$1:J6,I$2:I$486),0)),\"\")","v":"5-Atenas"},"6-Naranjo","","",{"$f":"IFERROR(INDEX(M$2:M$486,MATCH(0,COUNTIF(N$1:N6,M$2:M$486),0)),\"\")","v":""},"",7]
["1-San José","1-San José","7-Uruca",null,null,null,null,"7-Limón","",{"$f":"IFERROR(INDEX(I$2:I$486,MATCH(0,COUNTIF(J$1:J7,I$2:I$486),0)),\"\")","v":"6-Naranjo"},"7-Palmares","","",{"$f":"IFERROR(INDEX(M$2:M$486,MATCH(0,COUNTIF(N$1:N7,M$2:M$486),0)),\"\")","v":""},"",8]
["1-San José","1-San José","8-Mata Redonda",null,null,null,null,null,"",{"$f":"IFERROR(INDEX(I$2:I$486,MATCH(0,COUNTIF(J$1:J8,I$2:I$486),0)),\"\")","v":"7-Palmares"},"8-Poás","","",{"$f":"IFERROR(INDEX(M$2:M$486,MATCH(0,COUNTIF(N$1:N8,M$2:M$486),0)),\"\")","v":""},"",9]
["1-San José","1-San José","9-Pavas",null,null,null,null,null,"",{"$f":"IFERROR(INDEX(I$2:I$486,MATCH(0,COUNTIF(J$1:J9,I$2:I$486),0)),\"\")","v":"8-Poás"},"9-Orotina","","",{"$f":"IFERROR(INDEX(M$2:M$486,MATCH(0,COUNTIF(N$1:N9,M$2:M$486),0)),\"\")","v":""},"",10]
["1-San José","1-San José","10-Hatillo",null,null,null,null,null,"",{"$f":"IFERROR(INDEX(I$2:I$486,MATCH(0,COUNTIF(J$1:J10,I$2:I$486),0)),\"\")","v":"9-Orotina"},"10-San Carlos","","",{"$f":"IFERROR(INDEX(M$2:M$486,MATCH(0,COUNTIF(N$1:N10,M$2:M$486),0)),\"\")","v":""},"",11]
["1-San José","1-San José","11-San Sebastían",null,null,null,null,null,"",{"$f":"IFERROR(INDEX(I$2:I$486,MATCH(0,COUNTIF(J$1:J11,I$2:I$486),0)),\"\")","v":"10-San Carlos"},"11-Zarcero","","",{"$f":"IFERROR(INDEX(M$2:M$486,MATCH(0,COUNTIF(N$1:N11,M$2:M$486),0)),\"\")","v":""},"",12]
["1-San José","2-Escazú","1-Escazú",null,null,null,null,null,"",{"$f":"IFERROR(INDEX(I$2:I$486,MATCH(0,COUNTIF(J$1:J12,I$2:I$486),0)),\"\")","v":"11-Zarcero"},"12-Valverde Vega","","",{"$f":"IFERROR(INDEX(M$2:M$486,MATCH(0,COUNTIF(N$1:N12,M$2:M$486),0)),\"\")","v":""},"",13]
["1-San José","2-Escazú","2-San Antonio",null,null,null,null,null,"",{"$f":"IFERROR(INDEX(I$2:I$486,MATCH(0,COUNTIF(J$1:J13,I$2:I$486),0)),\"\")","v":"12-Valverde Vega"},"13-Upala","","",{"$f":"IFERROR(INDEX(M$2:M$486,MATCH(0,COUNTIF(N$1:N13,M$2:M$486),0)),\"\")","v":""},"",14]
["1-San José","2-Escazú","3-San Rafael",null,null,null,null,null,"",{"$f":"IFERROR(INDEX(I$2:I$486,MATCH(0,COUNTIF(J$1:J14,I$2:I$486),0)),\"\")","v":"13-Upala"},"14-Los Chiles","","",{"$f":"IFERROR(INDEX(M$2:M$486,MATCH(0,COUNTIF(N$1:N14,M$2:M$486),0)),\"\")","v":""},"",15]
["1-San José","3-Desamparados","1-Desamparados",null,null,null,null,null,"",{"$f":"IFERROR(INDEX(I$2:I$486,MATCH(0,COUNTIF(J$1:J15,I$2:I$486),0)),\"\")","v":"14-Los Chiles"},"15-Guatuso","","",{"$f":"IFERROR(INDEX(M$2:M$486,MATCH(0,COUNTIF(N$1:N15,M$2:M$486),0)),\"\")","v":""},"",16]
["1-San José","3-Desamparados","2-San Miguel",null,null,null,null,null,"",{"$f":"IFERROR(INDEX(I$2:I$486,MATCH(0,COUNTIF(J$1:J16,I$2:I$486),0)),\"\")","v":"15-Guatuso"},"16-Río Cuarto","","",{"$f":"IFERROR(INDEX(M$2:M$486,MATCH(0,COUNTIF(N$1:N16,M$2:M$486),0)),\"\")","v":""},"",17]
["1-San José","3-Desamparados","3-San Juan de Dios",null,null,null,null,null,"",{"$f":"IFERROR(INDEX(I$2:I$486,MATCH(0,COUNTIF(J$1:J17,I$2:I$486),0)),\"\")","v":"16-Río Cuarto"},"",18,"",{"$f":"IFERROR(INDEX(M$2:M$486,MATCH(0,COUNTIF(N$1:N17,M$2:M$486),0)),\"\")","v":""},null,18]
["1-San José","3-Desamparados","4-San Rafael Arriba",null,null,null,null,null,"",{"$f":"IFERROR(INDEX(I$2:I$486,MATCH(0,COUNTIF(J$1:J18,I$2:I$486),0)),\"\")","v":""},"",19,"",null,null,{"$f":"\"Datos!O2:O\"&(MIN(P3:P18)-1)","v":"Datos!O2:O2"}]
["1-San José","3-Desamparados","5-San Antonio",null,null,null,null,null,"",{"$f":"IFERROR(INDEX(I$2:I$486,MATCH(0,COUNTIF(J$1:J19,I$2:I$486),0)),\"\")","v":""},"",20,""]
["1-San José","3-Desamparados","6-Frailes",null,null,null,null,null,"",{"$f":"IFERROR(INDEX(I$2:I$486,MATCH(0,COUNTIF(J$1:J20,I$2:I$486),0)),\"\")","v":""},"",21,""]
["1-San José","3-Desamparados","7-Patarrá",null,null,null,null,null,"",{"$f":"IFERROR(INDEX(I$2:I$486,MATCH(0,COUNTIF($J$1:J21,I$2:I$486),0)),\"\")","v":""},null,22,""]
["1-San José","3-Desamparados","8-San Cristóbal",null,null,null,null,null,"",null,null,{"$f":"\"Datos!K2:K\"&(MIN(L3:L22)-1)","v":"Datos!K2:K17"},""]
["1-San José","3-Desamparados","9-Rosario",null,null,null,null,null,"",null,null,null,""]
["1-San José","3-Desamparados","10-Damas",null,null,null,null,null,"",null,null,null,""]
["1-San José","3-Desamparados","11-San Rafael Abajo",null,null,null,null,null,"",null,null,null,""]
["1-San José","3-Desamparados","12-Gravilias",null,null,null,null,null,"",null,null,null,""]
["1-San José","3-Desamparados","13-Los Guido",null,null,null,null,null,"",null,null,null,""]
["1-San José","4-Puriscal","1-Santiago",null,null,null,null,null,"",null,null,null,""]
["1-San José","4-Puriscal","2-Mercedes Sur",null,null,null,null,null,"",null,null,null,""]
["1-San José","4-Puriscal","3-Barbacoas",null,null,null,null,null,"",null,null,null,""]
["1-San José","4-Puriscal","4-Grifo Alto",null,null,null,null,null,"",null,null,null,""]
["1-San José","4-Puriscal","5-San Rafael",null,null,null,null,null,"",null,null,null,""]
["1-San José","4-Puriscal","6-Candelarita",null,null,null,null,null,"",null,null,null,""]
["1-San José","4-Puriscal","7-Desamparaditos",null,null,null,null,null,"",null,null,null,""]
["1-San José","4-Puriscal","8-San Antonio",null,null,null,null,null,"",null,null,null,""]
["1-San José","4-Puriscal","9-Chires",null,null,null,null,null,"",null,null,null,""]
["1-San José","5-Tarrazú","1-San Marcos",null,null,null,null,null,"",null,null,null,""]
["1-San José","5-Tarrazú","2-San Lorenzo",null,null,null,null,null,"",null,null,null,""]
["1-San José","5-Tarrazú","3-San Carlos",null,null,null,null,null,"",null,null,null,""]
["1-San José","6-Aserrí","1-Aserrí",null,null,null,null,null,"",null,null,null,""]
["1-San José","6-Aserrí","2-Tarbaca",null,null,null,null,null,"",null,null,null,""]
["1-San José","6-Aserrí","3-Vuelta de Jorco",null,null,null,null,null,"",null,null,null,""]
["1-San José","6-Aserrí","4-San Gabriel",null,null,null,null,null,"",null,null,null,""]
["1-San José","6-Aserrí","5-Legua",null,null,null,null,null,"",null,null,null,""]
["1-San José","6-Aserrí","6-Monterrey",null,null,null,null,null,"",null,null,null,""]
["1-San José","6-Aserrí","7-Salitrillos",null,null,null,null,null,"",null,null,null,""]
["1-San José","7-Mora","1-Ciudad Colón",null,null,null,null,null,"",null,null,null,""]
["1-San José","7-Mora","2-Guayabo",null,null,null,null,null,"",null,null,null,""]
["1-San José","7-Mora","3-Tabarcia",null,null,null,null,null,"",null,null,null,""]
["1-San José","7-Mora","4-Piedras Negras",null,null,null,null,null,"",null,null,null,""]
["1-San José","7-Mora","5-Picagres",null,null,null,null,null,"",null,null,null,""]
["1-San José","7-Mora","6-Jaris",null,null,null,null,null,"",null,null,null,""]
["1-San José","7-Mora","7-Quitirrisí",null,null,null,null,null,"",null,null,null,""]
["1-San José","8-Goicoechea","1-Guadalupe",null,null,null,null,null,"",null,null,null,""]
["1-San José","8-Goicoechea","2-San Francisco",null,null,null,null,null,"",null,null,null,""]
["1-San José","8-Goicoechea","3-Calle Blancos",null,null,null,null,null,"",null,null,null,""]
["1-San José","8-Goicoechea","4-Mata de Plátano",null,null,null,null,null,"",null,null,null,""]
["1-San José","8-Goicoechea","5-Ipís",null,null,null,null,null,"",null,null,null,""]
["1-San José","8-Goicoechea","6-Rancho Redondo",null,null,null,null,null,"",null,null,null,""]
["1-San José","8-Goicoechea","7-Purral",null,null,null,null,null,"",null,null,null,""]
["1-San José","9-Santa Ana","1-Santa Ana",null,null,null,null,null,"",null,null,null,""]
["1-San José","9-Santa Ana","2-Salitral",null,null,null,null,null,"",null,null,null,""]
["1-San José","9-Santa Ana","3-Pozos",null,null,null,null,null,"",null,null,null,""]
["1-San José","9-Santa Ana","4-Uruca",null,null,null,null,null,"",null,null,null,""]
["1-San José","9-Santa Ana","5-Piedades",null,null,null,null,null,{"$f":"IF(A66=F$2,B66,\"\")","v":""},null,null,null,""]
["1-San José","9-Santa Ana","6-Brasil",null,null,null,null,null,"",null,null,null,{"$f":"IF(AND(A67=F$2,B67=F$3),C67,\"\")","v":""}]
["1-San José","10-Alajuelita","1-Alajuelita",null,null,null,null,null,"",null,null,null,""]
["1-San José","10-Alajuelita","2-San Josecito",null,null,null,null,null,"",null,null,null,""]
["1-San José","10-Alajuelita","3-San Antonio",null,null,null,null,null,"",null,null,null,""]
["1-San José","10-Alajuelita","4-Concepción",null,null,null,null,null,"",null,null,null,""]
["1-San José","10-Alajuelita","5-San Felipe",null,null,null,null,null,"",null,null,null,""]
["1-San José","11-Vásquez de Coronado     ","1-San Isidro",null,null,null,null,null,"",null,null,null,""]
["1-San José","11-Vásquez de Coronado     ","2-San Rafael",null,null,null,null,null,"",null,null,null,""]
["1-San José","11-Vásquez de Coronado     ","3-Dulce Nombre de Jesús",null,null,null,null,null,"",null,null,null,""]
["1-San José","11-Vásquez de Coronado     ","4-Patalillo",null,null,null,null,null,"",null,null,null,""]
["1-San José","11-Vásquez de Coronado     ","5-Cascajal",null,null,null,null,null,"",null,null,null,""]
["1-San José","12-Acosta","1-San Ignacio",null,null,null,null,null,"",null,null,null,""]
["1-San José","12-Acosta","2-Guaitil",null,null,null,null,null,"",null,null,null,""]
["1-San José","12-Acosta","3-Palmichal",null,null,null,null,null,"",null,null,null,""]
["1-San José","12-Acosta","4-Cangrejal",null,null,null,null,null,"",null,null,null,""]
["1-San José","12-Acosta","5-Sabanillas",null,null,null,null,null,"",null,null,null,""]
["1-San José","13-Tibás","1-San Juan",null,null,null,null,null,"",null,null,null,""]
["1-San José","13-Tibás","2-Cinco Esquinas",null,null,null,null,null,"",null,null,null,""]
["1-San José","13-Tibás","3-Anselmo Llorente",null,null,null,null,null,"",null,null,null,""]
["1-San José","13-Tibás","4-León XIII",null,null,null,null,null,"",null,null,null,""]
["1-San José","13-Tibás","5-Colima",null,null,null,null,null,"",null,null,null,""]
["1-San José","14-Moravia","1-San Vicente",null,null,null,null,null,"",null,null,null,""]
["1-San José","14-Moravia","2-San Jerónimo",null,null,null,null,null,"",null,null,null,""]
["1-San José","14-Moravia","3-Trinidad",null,null,null,null,null,"",null,null,null,""]
["1-San José","15-Montes de Oca","1-San Pedro",null,null,null,null,null,"",null,null,null,""]
["1-San José","15-Montes de Oca","2-Sabanilla",null,null,null,null,null,"",null,null,null,""]
["1-San José","15-Montes de Oca","3-Mercedes",null,null,null,null,null,"",null,null,null,""]
["1-San José","15-Montes de Oca","4-San Rafael",null,null,null,null,null,"",null,null,null,""]
["1-San José","16-Turrúbares","1-San Pablo",null,null,null,null,null,"",null,null,null,""]
["1-San José","16-Turrúbares","2-San Pedro",null,null,null,null,null,"",null,null,null,""]
["1-San José","16-Turrúbares","3-San Juan de Mata",null,null,null,null,null,"",null,null,null,""]
["1-San José","16-Turrúbares","4-San Luis",null,null,null,null,null,"",null,null,null,""]
["1-San José","16-Turrúbares","5-Carara",null,null,null,null,null,"",null,null,null,""]
["1-San José","17-Dota","1-Santa María",null,null,null,null,null,"",null,null,null,""]
["1-San José","17-Dota","2-Jardín",null,null,null,null,null,"",null,null,null,""]
["1-San José","17-Dota","3-Copey",null,null,null,null,null,"",null,null,null,""]
["1-San José","18-Curridabat","1-Curridabat",null,null,null,null,null,"",null,null,null,""]
["1-San José","18-Curridabat","2-Granadilla",null,null,null,null,null,"",null,null,null,""]
["1-San José","18-Curridabat","3-Sánchez",null,null,null,null,null,"",null,null,null,""]
["1-San José","18-Curridabat","4-Tirrases",null,null,null,null,null,"",null,null,null,""]
["1-San José","19-Pérez Zeledón","1-San Isidro de El General",null,null,null,null,null,"",null,null,null,""]
["1-San José","19-Pérez Zeledón","2-El General",null,null,null,null,null,"",null,null,null,""]
["1-San José","19-Pérez Zeledón","3-Daniel Flores",null,null,null,null,null,"",null,null,null,""]
["1-San José","19-Pérez Zeledón","4-Rivas",null,null,null,null,null,"",null,null,null,""]
["1-San José","19-Pérez Zeledón","5-San Pedro",null,null,null,null,null,"",null,null,null,""]
["1-San José","19-Pérez Zeledón","6-Platanares",null,null,null,null,null,"",null,null,null,""]
["1-San José","19-Pérez Zeledón","7-Pejibaye",null,null,null,null,null,"",null,null,null,""]
["1-San José","19-Pérez Zeledón","8-Cajón",null,null,null,null,null,"",null,null,null,""]
["1-San José","19-Pérez Zeledón","9-Barú",null,null,null,null,null,"",null,null,null,""]
["1-San José","19-Pérez Zeledón","10-Río Nuevo",null,null,null,null,null,"",null,null,null,""]
["1-San José","19-Pérez Zeledón","11-Páramo",null,null,null,null,null,"",null,null,null,""]
["1-San José","19-Pérez Zeledón","12-La Amistad",null,null,null,null,null,"",null,null,null,""]
["1-San José","20-León Cortés Castro","1-San Pablo",null,null,null,null,null,"",null,null,null,""]
["1-San José","20-León Cortés Castro","2-San Andrés",null,null,null,null,null,"",null,null,null,""]
["1-San José","20-León Cortés Castro","3-Llano Bonito",null,null,null,null,null,"",null,null,null,""]
["1-San José","20-León Cortés Castro","4-San Isidro",null,null,null,null,null,"",null,null,null,""]
["1-San José","20-León Cortés Castro","5-Santa Cruz",null,null,null,null,null,"",null,null,null,""]
["1-San José","20-León Cortés Castro","6-San Antonio",null,null,null,null,null,"",null,null,null,""]
["2-Alajuela","1-Alajuela","1-Alajuela",null,null,null,null,null,"1-Alajuela",null,null,null,""]
["2-Alajuela","1-Alajuela","2-San José",null,null,null,null,null,"1-Alajuela",null,null,null,""]
["2-Alajuela","1-Alajuela","3-Carrizal",null,null,null,null,null,"1-Alajuela",null,null,null,""]
["2-Alajuela","1-Alajuela","4-San Antonio",null,null,null,null,null,"1-Alajuela",null,null,null,""]
["2-Alajuela","1-Alajuela","5-Guácima",null,null,null,null,null,"1-Alajuela",null,null,null,""]
["2-Alajuela","1-Alajuela","6-San Isidro",null,null,null,null,null,{"$f":"IF(A130=F$2,B130,\"\")","v":"1-Alajuela"},null,null,null,""]
["2-Alajuela","1-Alajuela","7-Sabanilla",null,null,null,null,null,"1-Alajuela",null,null,null,{"$f":"IF(AND(A131=F$2,B131=F$3),C131,\"\")","v":""}]
["2-Alajuela","1-Alajuela","8-San Rafael",null,null,null,null,null,"1-Alajuela",null,null,null,""]
["2-Alajuela","1-Alajuela","9-Río Segundo",null,null,null,null,null,"1-Alajuela",null,null,null,""]
["2-Alajuela","1-Alajuela","10-Desamparados",null,null,null,null,null,"1-Alajuela",null,null,null,""]
["2-Alajuela","1-Alajuela","11-Turrúcares",null,null,null,null,null,"1-Alajuela",null,null,null,""]
["2-Alajuela","1-Alajuela","12- Tambor",null,null,null,null,null,"1-Alajuela",null,null,null,""]
["2-Alajuela","1-Alajuela","13-Garita",null,null,null,null,null,"1-Alajuela",null,null,null,""]
["2-Alajuela","1-Alajuela","14-Sarapiquí",null,null,null,null,null,"1-Alajuela",null,null,null,""]
["2-Alajuela","2-San Ramón","1-San Ramón",null,null,null,null,null,"2-San Ramón",null,null,null,""]
["2-Alajuela","2-San Ramón","2-Santiago",null,null,null,null,null,"2-San Ramón",null,null,null,""]
["2-Alajuela","2-San Ramón","3-San Juan",null,null,null,null,null,"2-San Ramón",null,null,null,""]
["2-Alajuela","2-San Ramón","4-Piedades Norte",null,null,null,null,null,"2-San Ramón",null,null,null,""]
["2-Alajuela","2-San Ramón","5-Piedades Sur",null,null,null,null,null,"2-San Ramón",null,null,null,""]
["2-Alajuela","2-San Ramón","6-San Rafael",null,null,null,null,null,"2-San Ramón",null,null,null,""]
["2-Alajuela","2-San Ramón","7-San Isidro",null,null,null,null,null,"2-San Ramón",null,null,null,""]
["2-Alajuela","2-San Ramón","8-Ángeles",null,null,null,null,null,"2-San Ramón",null,null,null,""]
["2-Alajuela","2-San Ramón","9-Alfaro",null,null,null,null,null,"2-San Ramón",null,null,null,""]
["2-Alajuela","2-San Ramón","10-Volio",null,null,null,null,null,"2-San Ramón",null,null,null,""]
["2-Alajuela","2-San Ramón","11-Concepción",null,null,null,null,null,"2-San Ramón",null,null,null,""]
["2-Alajuela","2-San Ramón","12-Zapotal",null,null,null,null,null,"2-San Ramón",null,null,null,""]
["2-Alajuela","2-San Ramón","13-Peñas Blancas",null,null,null,null,null,"2-San Ramón",null,null,null,""]
["2-Alajuela","2-San Ramón","14-San Lorenzo",null,null,null,null,null,"2-San Ramón",null,null,null,""]
["2-Alajuela","3-Grecia","1-Grecia",null,null,null,null,null,"3-Grecia",null,null,null,""]
["2-Alajuela","3-Grecia","2-San Isidro",null,null,null,null,null,"3-Grecia",null,null,null,""]
["2-Alajuela","3-Grecia","3-San José",null,null,null,null,null,"3-Grecia",null,null,null,""]
["2-Alajuela","3-Grecia","4-San Roque",null,null,null,null,null,"3-Grecia",null,null,null,""]
["2-Alajuela","3-Grecia","5-Tacares",null,null,null,null,null,"3-Grecia",null,null,null,""]
["2-Alajuela","3-Grecia","6-Puente de Piedra",null,null,null,null,null,"3-Grecia",null,null,null,""]
["2-Alajuela","3-Grecia","7-Bolívar",null,null,null,null,null,"3-Grecia",null,null,null,""]
["2-Alajuela","4-San Mateo","1-San Mateo",null,null,null,null,null,"4-San Mateo",null,null,null,""]
["2-Alajuela","4-San Mateo","2-Desmonte",null,null,null,null,null,"4-San Mateo",null,null,null,""]
["2-Alajuela","4-San Mateo","3-Jesús María",null,null,null,null,null,"4-San Mateo",null,null,null,""]
["2-Alajuela","4-San Mateo","4-Labrador",null,null,null,null,null,"4-San Mateo",null,null,null,""]
["2-Alajuela","5-Atenas","1-Atenas",null,null,null,null,null,"5-Atenas",null,null,null,""]
["2-Alajuela","5-Atenas","2-Jesús",null,null,null,null,null,"5-Atenas",null,null,null,""]
["2-Alajuela","5-Atenas","3-Mercedes",null,null,null,null,null,"5-Atenas",null,null,null,""]
["2-Alajuela","5-Atenas","4-San Isidro",null,null,null,null,null,"5-Atenas",null,null,null,""]
["2-Alajuela","5-Atenas","5-Concepción",null,null,null,null,null,"5-Atenas",null,null,null,""]
["2-Alajuela","5-Atenas","6-San José",null,null,null,null,null,"5-Atenas",null,null,null,""]
["2-Alajuela","5-Atenas","7-Santa Eulalia",null,null,null,null,null,"5-Atenas",null,null,null,""]
["2-Alajuela","5-Atenas","8-Escobal",null,null,null,null,null,"5-Atenas",null,null,null,""]
["2-Alajuela","6-Naranjo","1-Naranjo",null,null,null,null,null,"6-Naranjo",null,null,null,""]
["2-Alajuela","6-Naranjo","2-San Miguel",null,null,null,null,null,"6-Naranjo",null,null,null,""]
["2-Alajuela","6-Naranjo","3-San José",null,null,null,null,null,"6-Naranjo",null,null,null,""]
["2-Alajuela","6-Naranjo","4-Cirrí",null,null,null,null,null,"6-Naranjo",null,null,null,""]
["2-Alajuela","6-Naranjo","5-San Jerónimo",null,null,null,null,null,"6-Naranjo",null,null,null,""]
["2-Alajuela","6-Naranjo","6-San Juan",null,null,null,null,null,"6-Naranjo",null,null,null,""]
["2-Alajuela","6-Naranjo","7-El Rosario",null,null,null,null,null,"6-Naranjo",null,null,null,""]
["2-Alajuela","6-Naranjo","8-Palmitos",null,null,null,null,null,"6-Naranjo",null,null,null,""]
["2-Alajuela","7-Palmares","1-Palmares",null,null,null,null,null,"7-Palmares",null,null,null,""]
["2-Alajuela","7-Palmares","2-Zaragoza",null,null,null,null,null,"7-Palmares",null,null,null,""]
["2-Alajuela","7-Palmares","3-Buenos Aires",null,null,null,null,null,"7-Palmares",null,null,null,""]
["2-Alajuela","7-Palmares","4-Santiago",null,null,null,null,null,"7-Palmares",null,null,null,""]
["2-Alajuela","7-Palmares","5-Candelaria",null,null,null,null,null,"7-Palmares",null,null,null,""]
["2-Alajuela","7-Palmares","6-Esquipulas",null,null,null,null,null,"7-Palmares",null,null,null,""]
["2-Alajuela","7-Palmares","7-La Granja",null,null,null,null,null,"7-Palmares",null,null,null,""]
["2-Alajuela","8-Poás","1-San Pedro",null,null,null,null,null,"8-Poás",null,null,null,""]
["2-Alajuela","8-Poás","2-San Juan",null,null,null,null,null,"8-Poás",null,null,null,""]
["2-Alajuela","8-Poás","3-San Rafael",null,null,null,null,null,"8-Poás",null,null,null,""]
["2-Alajuela","8-Poás","4-Carrillos",null,null,null,null,null,"8-Poás",null,null,null,""]
["2-Alajuela","8-Poás","5-Sabana Redonda",null,null,null,null,null,"8-Poás",null,null,null,""]
["2-Alajuela","9-Orotina","1-Orotina",null,null,null,null,null,"9-Orotina",null,null,null,""]
["2-Alajuela","9-Orotina","2-Mastate",null,null,null,null,null,"9-Orotina",null,null,null,""]
["2-Alajuela","9-Orotina","3-Hacienda Vieja",null,null,null,null,null,{"$f":"IF(A194=F$2,B194,\"\")","v":"9-Orotina"},null,null,null,""]
["2-Alajuela","9-Orotina","4-Coyolar",null,null,null,null,null,"9-Orotina",null,null,null,{"$f":"IF(AND(A195=F$2,B195=F$3),C195,\"\")","v":""}]
["2-Alajuela","9-Orotina","5-La Ceiba",null,null,null,null,null,"9-Orotina",null,null,null,""]
["2-Alajuela","10-San Carlos","1-Quesada",null,null,null,null,null,"10-San Carlos",null,null,null,""]
["2-Alajuela","10-San Carlos","2-Florencia",null,null,null,null,null,"10-San Carlos",null,null,null,""]
["2-Alajuela","10-San Carlos","3-Buenavista",null,null,null,null,null,"10-San Carlos",null,null,null,""]
["2-Alajuela","10-San Carlos","4-Aguas Zarcas",null,null,null,null,null,"10-San Carlos",null,null,null,""]
["2-Alajuela","10-San Carlos","5-Venecia",null,null,null,null,null,"10-San Carlos",null,null,null,""]
["2-Alajuela","10-San Carlos","6-Pital",null,null,null,null,null,"10-San Carlos",null,null,null,""]
["2-Alajuela","10-San Carlos","7-La Fortuna",null,null,null,null,null,"10-San Carlos",null,null,null,""]
["2-Alajuela","10-San Carlos","8-La Tigra",null,null,null,null,null,"10-San Carlos",null,null,null,""]
["2-Alajuela","10-San Carlos","9-La Palmera",null,null,null,null,null,"10-San Carlos",null,null,null,""]
["2-Alajuela","10-San Carlos","10-Venado",null,null,null,null,null,"10-San Carlos",null,null,null,""]
["2-Alajuela","10-San Carlos","11-Cutris",null,null,null,null,null,"10-San Carlos",null,null,null,""]
["2-Alajuela","10-San Carlos","12-Monterrey",null,null,null,null,null,"10-San Carlos",null,null,null,""]
["2-Alajuela","10-San Carlos","13-Pocosol",null,null,null,null,null,"10-San Carlos",null,null,null,""]
["2-Alajuela","11-Zarcero","1-Zarcero",null,null,null,null,null,"11-Zarcero",null,null,null,""]
["2-Alajuela","11-Zarcero","2-Laguna",null,null,null,null,null,"11-Zarcero",null,null,null,""]
["2-Alajuela","11-Zarcero","3-Tapezco",null,null,null,null,null,"11-Zarcero",null,null,null,""]
["2-Alajuela","11-Zarcero","4-Guadalupe",null,null,null,null,null,"11-Zarcero",null,null,null,""]
["2-Alajuela","11-Zarcero","5-Palmira",null,null,null,null,null,"11-Zarcero",null,null,null,""]
["2-Alajuela","11-Zarcero","6-Zapote",null,null,null,null,null,"11-Zarcero",null,null,null,""]
["2-Alajuela","11-Zarcero","7-Brisas",null,null,null,null,null,"11-Zarcero",null,null,null,""]
["2-Alajuela","12-Valverde Vega","1-Sarchí Norte",null,null,null,null,null,"12-Valverde Vega",null,null,null,""]
["2-Alajuela","12-Valverde Vega","2-Sarchí Sur",null,null,null,null,null,"12-Valverde Vega",null,null,null,""]
["2-Alajuela","12-Valverde Vega","3-Toro Amarillo",null,null,null,null,null,"12-Valverde Vega",null,null,null,""]
["2-Alajuela","12-Valverde Vega","4-San Pedro",null,null,null,null,null,"12-Valverde Vega",null,null,null,""]
["2-Alajuela","12-Valverde Vega","5-Rodríguez",null,null,null,null,null,"12-Valverde Vega",null,null,null,""]
["2-Alajuela","13-Upala","1-Upala",null,null,null,null,null,"13-Upala",null,null,null,""]
["2-Alajuela","13-Upala","2-Aguas Claras",null,null,null,null,null,"13-Upala",null,null,null,""]
["2-Alajuela","13-Upala","3- San José (Pizote)",null,null,null,null,null,"13-Upala",null,null,null,""]
["2-Alajuela","13-Upala","4-Bijagua",null,null,null,null,null,"13-Upala",null,null,null,""]
["2-Alajuela","13-Upala","5-Delicias",null,null,null,null,null,"13-Upala",null,null,null,""]
["2-Alajuela","13-Upala","6-Dos Ríos",null,null,null,null,null,"13-Upala",null,null,null,""]
["2-Alajuela","13-Upala","7-Yolillal",null,null,null,null,null,"13-Upala",null,null,null,""]
["2-Alajuela","13-Upala","8-Canalete",null,null,null,null,null,"13-Upala",null,null,null,""]
["2-Alajuela","14-Los Chiles","1-Los Chiles",null,null,null,null,null,"14-Los Chiles",null,null,null,""]
["2-Alajuela","14-Los Chiles","2-Caño Negro",null,null,null,null,null,"14-Los Chiles",null,null,null,""]
["2-Alajuela","14-Los Chiles","3-El Amparo",null,null,null,null,null,"14-Los Chiles",null,null,null,""]
["2-Alajuela","14-Los Chiles","4-San Jorge",null,null,null,null,null,"14-Los Chiles",null,null,null,""]
["2-Alajuela","15-Guatuso","1-San Rafael",null,null,null,null,null,"15-Guatuso",null,null,null,""]
["2-Alajuela","15-Guatuso","2-Buenavista",null,null,null,null,null,"15-Guatuso",null,null,null,""]
["2-Alajuela","15-Guatuso","3-Cote",null,null,null,null,null,"15-Guatuso",null,null,null,""]
["2-Alajuela","15-Guatuso","4-Katira",null,null,null,null,null,"15-Guatuso",null,null,null,""]
["2-Alajuela","16-Río Cuarto","1-Río Cuarto",null,null,null,null,null,"16-Río Cuarto",null,null,null,""]
["3-Cartago","1-Cartago","1-Oriental",null,null,null,null,null,"",null,null,null,""]
["3-Cartago","1-Cartago","2-Occidental",null,null,null,null,null,"",null,null,null,""]
["3-Cartago","1-Cartago","3-Carmen",null,null,null,null,null,"",null,null,null,""]
["3-Cartago","1-Cartago","4-San Nicolás",null,null,null,null,null,"",null,null,null,""]
["3-Cartago","1-Cartago","5-Agua Caliente (San Francisco)",null,null,null,null,null,"",null,null,null,""]
["3-Cartago","1-Cartago","6-Guadalupe (Arenilla)",null,null,null,null,null,"",null,null,null,""]
["3-Cartago","1-Cartago","7-Corralillo",null,null,null,null,null,"",null,null,null,""]
["3-Cartago","1-Cartago","8-Tierra Blanca",null,null,null,null,null,"",null,null,null,""]
["3-Cartago","1-Cartago","9-Dulce Nombre",null,null,null,null,null,"",null,null,null,""]
["3-Cartago","1-Cartago","10-Llano Grande",null,null,null,null,null,"",null,null,null,""]
["3-Cartago","1-Cartago","11-Quebradilla",null,null,null,null,null,"",null,null,null,""]
["3-Cartago","2-Paraíso","1-Paraíso",null,null,null,null,null,"",null,null,null,""]
["3-Cartago","2-Paraíso","2-Santiago de Paraíso",null,null,null,null,null,"",null,null,null,""]
["3-Cartago","2-Paraíso","3-Orosi",null,null,null,null,null,"",null,null,null,""]
["3-Cartago","2-Paraíso","4-Cachí",null,null,null,null,null,"",null,null,null,""]
["3-Cartago","2-Paraíso","5-Llanos de Santa Lucía",null,null,null,null,null,"",null,null,null,""]
["3-Cartago","3-La Unión","1-Tres Ríos",null,null,null,null,null,"",null,null,null,""]
["3-Cartago","3-La Unión","2-San Diego",null,null,null,null,null,"",null,null,null,""]
["3-Cartago","3-La Unión","3-San Juan",null,null,null,null,null,"",null,null,null,""]
["3-Cartago","3-La Unión","4-San Rafael",null,null,null,null,null,{"$f":"IF(A258=F$2,B258,\"\")","v":""},null,null,null,""]
["3-Cartago","3-La Unión","5-Concepción",null,null,null,null,null,"",null,null,null,{"$f":"IF(AND(A259=F$2,B259=F$3),C259,\"\")","v":""}]
["3-Cartago","3-La Unión","6-Dulce Nombre",null,null,null,null,null,"",null,null,null,""]
["3-Cartago","3-La Unión","7-San Ramón",null,null,null,null,null,"",null,null,null,""]
["3-Cartago","3-La Unión","8-Río Azul",null,null,null,null,null,"",null,null,null,""]
["3-Cartago","4-Jiménez","1-Juan viñas",null,null,null,null,null,"",null,null,null,""]
["3-Cartago","4-Jiménez","2-Tucurrique",null,null,null,null,null,"",null,null,null,""]
["3-Cartago","4-Jiménez","3-Pejibaye",null,null,null,null,null,"",null,null,null,""]
["3-Cartago","5-Turrialba","1-Turrialba",null,null,null,null,null,"",null,null,null,""]
["3-Cartago","5-Turrialba","2-La Suiza",null,null,null,null,null,"",null,null,null,""]
["3-Cartago","5-Turrialba","3-Peralta",null,null,null,null,null,"",null,null,null,""]
["3-Cartago","5-Turrialba","4-Santa Cruz",null,null,null,null,null,"",null,null,null,""]
["3-Cartago","5-Turrialba","5-Santa Teresita",null,null,null,null,null,"",null,null,null,""]
["3-Cartago","5-Turrialba","6-Pavones",null,null,null,null,null,"",null,null,null,""]
["3-Cartago","5-Turrialba","7-Tuis",null,null,null,null,null,"",null,null,null,""]
["3-Cartago","5-Turrialba","8-Tayutic",null,null,null,null,null,"",null,null,null,""]
["3-Cartago","5-Turrialba","9-Santa Rosa",null,null,null,null,null,"",null,null,null,""]
["3-Cartago","5-Turrialba","10-Tres Equis",null,null,null,null,null,"",null,null,null,""]
["3-Cartago","5-Turrialba","11-La Isabel",null,null,null,null,null,"",null,null,null,""]
["3-Cartago","5-Turrialba","12-Chirripó",null,null,null,null,null,"",null,null,null,""]
["3-Cartago","6-Alvarado","1-Pacayas",null,null,null,null,null,"",null,null,null,""]
["3-Cartago","6-Alvarado","2-Cervantes",null,null,null,null,null,"",null,null,null,""]
["3-Cartago","6-Alvarado","3-Capellades",null,null,null,null,null,"",null,null,null,""]
["3-Cartago","7-Oreamuno","1-San Rafael",null,null,null,null,null,"",null,null,null,""]
["3-Cartago","7-Oreamuno","2-Cot",null,null,null,null,null,"",null,null,null,""]
["3-Cartago","7-Oreamuno","3-Potrero Cerrado",null,null,null,null,null,"",null,null,null,""]
["3-Cartago","7-Oreamuno","4-Cipreses",null,null,null,null,null,"",null,null,null,""]
["3-Cartago","7-Oreamuno","5-Santa Rosa",null,null,null,null,null,"",null,null,null,""]
["3-Cartago","8-El Guarco","1-Tejar",null,null,null,null,null,"",null,null,null,""]
["3-Cartago","8-El Guarco","2-San Isidro",null,null,null,null,null,"",null,null,null,""]
["3-Cartago","8-El Guarco","3-Tobosi",null,null,null,null,null,"",null,null,null,""]
["3-Cartago","8-El Guarco","4-Patio de Agua",null,null,null,null,null,"",null,null,null,""]
["4-Heredia","1-Heredia","1-Heredia",null,null,null,null,null,"",null,null,null,""]
["4-Heredia","1-Heredia","2-Mercedes",null,null,null,null,null,"",null,null,null,""]
["4-Heredia","1-Heredia","3-San Francisco",null,null,null,null,null,"",null,null,null,""]
["4-Heredia","1-Heredia","4-Ulloa",null,null,null,null,null,"",null,null,null,""]
["4-Heredia","1-Heredia","5-Vara Blanca",null,null,null,null,null,"",null,null,null,""]
["4-Heredia","2-Barva","1-Barva",null,null,null,null,null,"",null,null,null,""]
["4-Heredia","2-Barva","2-San Pedro",null,null,null,null,null,"",null,null,null,""]
["4-Heredia","2-Barva","3-San Pablo",null,null,null,null,null,"",null,null,null,""]
["4-Heredia","2-Barva","4-San Roque",null,null,null,null,null,"",null,null,null,""]
["4-Heredia","2-Barva","5-Santa Lucía",null,null,null,null,null,"",null,null,null,""]
["4-Heredia","2-Barva","6-San José de la Montaña",null,null,null,null,null,"",null,null,null,""]
["4-Heredia","3-Santo Domingo","1-Santo Domingo",null,null,null,null,null,"",null,null,null,""]
["4-Heredia","3-Santo Domingo","2-San Vicente",null,null,null,null,null,"",null,null,null,""]
["4-Heredia","3-Santo Domingo","3- San Miguel",null,null,null,null,null,"",null,null,null,""]
["4-Heredia","3-Santo Domingo","4-Paracito",null,null,null,null,null,"",null,null,null,""]
["4-Heredia","3-Santo Domingo","5-Santo Tomás",null,null,null,null,null,"",null,null,null,""]
["4-Heredia","3-Santo Domingo","6-Santa Rosa",null,null,null,null,null,"",null,null,null,""]
["4-Heredia","3-Santo Domingo","7-Tures",null,null,null,null,null,"",null,null,null,""]
["4-Heredia","3-Santo Domingo","8-Pará",null,null,null,null,null,"",null,null,null,""]
["4-Heredia","4-Santa Barbara","1-Santa Bárbara",null,null,null,null,null,"",null,null,null,""]
["4-Heredia","4-Santa Barbara","2-San Pedro",null,null,null,null,null,"",null,null,null,""]
["4-Heredia","4-Santa Barbara","3-San Juan",null,null,null,null,null,"",null,null,null,""]
["4-Heredia","4-Santa Barbara","4-Jesús",null,null,null,null,null,"",null,null,null,""]
["4-Heredia","4-Santa Barbara","5-Santo Domingo",null,null,null,null,null,"",null,null,null,""]
["4-Heredia","4-Santa Barbara","6-Purabá",null,null,null,null,null,"",null,null,null,""]
["4-Heredia","5-San Rafael","1-San Rafael",null,null,null,null,null,"",null,null,null,""]
["4-Heredia","5-San Rafael","2-San Josecito",null,null,null,null,null,"",null,null,null,""]
["4-Heredia","5-San Rafael","3-Santiago",null,null,null,null,null,"",null,null,null,""]
["4-Heredia","5-San Rafael","4-Ángeles",null,null,null,null,null,"",null,null,null,""]
["4-Heredia","5-San Rafael","5-Concepción",null,null,null,null,null,"",null,null,null,""]
["4-Heredia","6-San Isidro","1-San Isidro",null,null,null,null,null,"",null,null,null,""]
["4-Heredia","6-San Isidro","2-San José",null,null,null,null,null,"",null,null,null,""]
["4-Heredia","6-San Isidro","3-Concepción",null,null,null,null,null,{"$f":"IF(A322=F$2,B322,\"\")","v":""},null,null,null,""]
["4-Heredia","6-San Isidro","4-San Francisco",null,null,null,null,null,"",null,null,null,{"$f":"IF(AND(A323=F$2,B323=F$3),C323,\"\")","v":""}]
["4-Heredia","7-Belén","1-San Antonio",null,null,null,null,null,"",null,null,null,""]
["4-Heredia","7-Belén","2-La Ribera",null,null,null,null,null,"",null,null,null,""]
["4-Heredia","7-Belén","3-La Asunción",null,null,null,null,null,"",null,null,null,""]
["4-Heredia","8-Flores","1-San Joaquín",null,null,null,null,null,"",null,null,null,""]
["4-Heredia","8-Flores","2-Barrantes",null,null,null,null,null,"",null,null,null,""]
["4-Heredia","8-Flores","3-Llorente",null,null,null,null,null,"",null,null,null,""]
["4-Heredia","9-San Pablo","1-San Pablo",null,null,null,null,null,"",null,null,null,""]
["4-Heredia","9-San Pablo","2-Rincón de Sabanilla",null,null,null,null,null,"",null,null,null,""]
["4-Heredia","10-Sarapiquí","1-Puerto Viejo",null,null,null,null,null,"",null,null,null,""]
["4-Heredia","10-Sarapiquí","2-La Virgen",null,null,null,null,null,"",null,null,null,""]
["4-Heredia","10-Sarapiquí","3-Horquetas",null,null,null,null,null,"",null,null,null,""]
["4-Heredia","10-Sarapiquí","4-Llanuras del Gaspar",null,null,null,null,null,"",null,null,null,""]
["4-Heredia","10-Sarapiquí","5-Cureña",null,null,null,null,null,"",null,null,null,""]
["5-Guanacaste","1-Liberia","1-Liberia",null,null,null,null,null,"",null,null,null,""]
["5-Guanacaste","1-Liberia","2-Cañas Dulces",null,null,null,null,null,"",null,null,null,""]
["5-Guanacaste","1-Liberia","3-Mayorga",null,null,null,null,null,"",null,null,null,""]
["5-Guanacaste","1-Liberia","4-Nacascolo",null,null,null,null,null,"",null,null,null,""]
["5-Guanacaste","1-Liberia","5-Curubandé",null,null,null,null,null,"",null,null,null,""]
["5-Guanacaste","2-Nicoya","1-Nicoya",null,null,null,null,null,"",null,null,null,""]
["5-Guanacaste","2-Nicoya","2-Mansión",null,null,null,null,null,"",null,null,null,""]
["5-Guanacaste","2-Nicoya","3-San Antonio",null,null,null,null,null,"",null,null,null,""]
["5-Guanacaste","2-Nicoya","4-Quebrada Honda",null,null,null,null,null,"",null,null,null,""]
["5-Guanacaste","2-Nicoya","5-Sámara",null,null,null,null,null,"",null,null,null,""]
["5-Guanacaste","2-Nicoya","6-Nosara",null,null,null,null,null,"",null,null,null,""]
["5-Guanacaste","2-Nicoya","7-Belén de Nosarita",null,null,null,null,null,"",null,null,null,""]
["5-Guanacaste","3-Santa Cruz","1-Santa Cruz",null,null,null,null,null,"",null,null,null,""]
["5-Guanacaste","3-Santa Cruz","2-Bolsón",null,null,null,null,null,"",null,null,null,""]
["5-Guanacaste","3-Santa Cruz","3-Veintisiete de Abril",null,null,null,null,null,"",null,null,null,""]
["5-Guanacaste","3-Santa Cruz","4-Tempate",null,null,null,null,null,"",null,null,null,""]
["5-Guanacaste","3-Santa Cruz","5-Cartagena",null,null,null,null,null,"",null,null,null,""]
["5-Guanacaste","3-Santa Cruz","6-Cuajiniquil",null,null,null,null,null,"",null,null,null,""]
["5-Guanacaste","3-Santa Cruz","7-Diriá",null,null,null,null,null,"",null,null,null,""]
["5-Guanacaste","3-Santa Cruz","8-Cabo Velas",null,null,null,null,null,"",null,null,null,""]
["5-Guanacaste","3-Santa Cruz","9-Tamarindo",null,null,null,null,null,"",null,null,null,""]
["5-Guanacaste","4-Bagaces","1-Bagaces",null,null,null,null,null,"",null,null,null,""]
["5-Guanacaste","4-Bagaces","2-La Fortuna",null,null,null,null,null,"",null,null,null,""]
["5-Guanacaste","4-Bagaces","3-Mogote",null,null,null,null,null,"",null,null,null,""]
["5-Guanacaste","4-Bagaces","4-Río Naranjo",null,null,null,null,null,"",null,null,null,""]
["5-Guanacaste","5-Carrillo","1-Filadelfia",null,null,null,null,null,"",null,null,null,""]
["5-Guanacaste","5-Carrillo","2-Palmira",null,null,null,null,null,"",null,null,null,""]
["5-Guanacaste","5-Carrillo","3-Sardinal",null,null,null,null,null,"",null,null,null,""]
["5-Guanacaste","5-Carrillo","4-Belén",null,null,null,null,null,"",null,null,null,""]
["5-Guanacaste","6-Cañas","1-Cañas",null,null,null,null,null,"",null,null,null,""]
["5-Guanacaste","6-Cañas","2-Palmira",null,null,null,null,null,"",null,null,null,""]
["5-Guanacaste","6-Cañas","3-San Miguel",null,null,null,null,null,"",null,null,null,""]
["5-Guanacaste","6-Cañas","4-Bebedero",null,null,null,null,null,"",null,null,null,""]
["5-Guanacaste","6-Cañas","5-Porozal",null,null,null,null,null,"",null,null,null,""]
["5-Guanacaste","7-Abangares","1-Las Juntas",null,null,null,null,null,"",null,null,null,""]
["5-Guanacaste","7-Abangares","2-Sierra",null,null,null,null,null,"",null,null,null,""]
["5-Guanacaste","7-Abangares","3-San Juan",null,null,null,null,null,"",null,null,null,""]
["5-Guanacaste","7-Abangares","4-Colorado",null,null,null,null,null,"",null,null,null,""]
["5-Guanacaste","8-Tilarán","1-Tilarán",null,null,null,null,null,"",null,null,null,""]
["5-Guanacaste","8-Tilarán","2-Quebrada Grande",null,null,null,null,null,"",null,null,null,""]
["5-Guanacaste","8-Tilarán","3-Tronadora",null,null,null,null,null,"",null,null,null,""]
["5-Guanacaste","8-Tilarán","4-Santa Rosa",null,null,null,null,null,"",null,null,null,""]
["5-Guanacaste","8-Tilarán","5-Líbano",null,null,null,null,null,"",null,null,null,""]
["5-Guanacaste","8-Tilarán","6-Tierras Morenas",null,null,null,null,null,"",null,null,null,""]
["5-Guanacaste","8-Tilarán","7-Arenal",null,null,null,null,null,"",null,null,null,""]
["5-Guanacaste","9-Nandayure","1-Carmona",null,null,null,null,null,"",null,null,null,""]
["5-Guanacaste","9-Nandayure","2-Santa Rita",null,null,null,null,null,"",null,null,null,""]
["5-Guanacaste","9-Nandayure","3-Zapotal",null,null,null,null,null,"",null,null,null,""]
["5-Guanacaste","9-Nandayure","4-San Pablo",null,null,null,null,null,"",null,null,null,""]
["5-Guanacaste","9-Nandayure","5-Porvenir",null,null,null,null,null,{"$f":"IF(A386=F$2,B386,\"\")","v":""},null,null,null,""]
["5-Guanacaste","9-Nandayure","6-Bejuco",null,null,null,null,null,"",null,null,null,{"$f":"IF(AND(A387=F$2,B387=F$3),C387,\"\")","v":""}]
["5-Guanacaste","10-La Cruz","1-La Cruz",null,null,null,null,null,"",null,null,null,""]
["5-Guanacaste","10-La Cruz","2-Santa Cecilia",null,null,null,null,null,"",null,null,null,""]
["5-Guanacaste","10-La Cruz","3-La Garita",null,null,null,null,null,"",null,null,null,""]
["5-Guanacaste","10-La Cruz","4-Santa Elena",null,null,null,null,null,"",null,null,null,""]
["5-Guanacaste","11-Hojancha","1-Hojancha",null,null,null,null,null,"",null,null,null,""]
["5-Guanacaste","11-Hojancha","2-Monte Romo",null,null,null,null,null,"",null,null,null,""]
["5-Guanacaste","11-Hojancha","3-Puerto Carrillo",null,null,null,null,null,"",null,null,null,""]
["5-Guanacaste","11-Hojancha","4-Huacas",null,null,null,null,null,"",null,null,null,""]
["5-Guanacaste","11-Hojancha","5-Matambú",null,null,null,null,null,"",null,null,null,""]
["6-Puntarenas","1-Puntarenas","1-Puntarenas",null,null,null,null,null,"",null,null,null,""]
["6-Puntarenas","1-Puntarenas","2-Pitahaya",null,null,null,null,null,"",null,null,null,""]
["6-Puntarenas","1-Puntarenas","3-Chomes",null,null,null,null,null,"",null,null,null,""]
["6-Puntarenas","1-Puntarenas","4-Lepanto",null,null,null,null,null,"",null,null,null,""]
["6-Puntarenas","1-Puntarenas","5-Paquera",null,null,null,null,null,"",null,null,null,""]
["6-Puntarenas","1-Puntarenas","6-Manzanillo",null,null,null,null,null,"",null,null,null,""]
["6-Puntarenas","1-Puntarenas","7-Guacimal",null,null,null,null,null,"",null,null,null,""]
["6-Puntarenas","1-Puntarenas","8-Barranca",null,null,null,null,null,"",null,null,null,""]
["6-Puntarenas","1-Puntarenas","9-Monteverde",null,null,null,null,null,"",null,null,null,""]
["6-Puntarenas","1-Puntarenas","10-Isla del Coco",null,null,null,null,null,"",null,null,null,""]
["6-Puntarenas","1-Puntarenas","11-Cóbano",null,null,null,null,null,"",null,null,null,""]
["6-Puntarenas","1-Puntarenas","12-Chacarita",null,null,null,null,null,"",null,null,null,""]
["6-Puntarenas","1-Puntarenas","13-Chira",null,null,null,null,null,"",null,null,null,""]
["6-Puntarenas","1-Puntarenas","14-Acapulco",null,null,null,null,null,"",null,null,null,""]
["6-Puntarenas","1-Puntarenas","15-El Roble",null,null,null,null,null,"",null,null,null,""]
["6-Puntarenas","1-Puntarenas","16-Arancibia",null,null,null,null,null,"",null,null,null,""]
["6-Puntarenas","2-Esparza","1-Espíritu Santo",null,null,null,null,null,"",null,null,null,""]
["6-Puntarenas","2-Esparza","2-San Juan Grande",null,null,null,null,null,"",null,null,null,""]
["6-Puntarenas","2-Esparza","3-Macacona",null,null,null,null,null,"",null,null,null,""]
["6-Puntarenas","2-Esparza","4-San Rafael",null,null,null,null,null,"",null,null,null,""]
["6-Puntarenas","2-Esparza","5-San Jerónimo",null,null,null,null,null,"",null,null,null,""]
["6-Puntarenas","2-Esparza","6-Caldera",null,null,null,null,null,"",null,null,null,""]
["6-Puntarenas","3-Buenos Aires","1-Buenos Aires",null,null,null,null,null,"",null,null,null,""]
["6-Puntarenas","3-Buenos Aires","2-Volcán",null,null,null,null,null,"",null,null,null,""]
["6-Puntarenas","3-Buenos Aires","3-Potrero Grande",null,null,null,null,null,"",null,null,null,""]
["6-Puntarenas","3-Buenos Aires","4-Boruca",null,null,null,null,null,"",null,null,null,""]
["6-Puntarenas","3-Buenos Aires","5-Pilas",null,null,null,null,null,"",null,null,null,""]
["6-Puntarenas","3-Buenos Aires","6-Colinas",null,null,null,null,null,"",null,null,null,""]
["6-Puntarenas","3-Buenos Aires","7-Chánguena",null,null,null,null,null,"",null,null,null,""]
["6-Puntarenas","3-Buenos Aires","8-Biolley",null,null,null,null,null,"",null,null,null,""]
["6-Puntarenas","3-Buenos Aires","9-Brunka",null,null,null,null,null,"",null,null,null,""]
["6-Puntarenas","4-Montes de Oro","1-Miramar",null,null,null,null,null,"",null,null,null,""]
["6-Puntarenas","4-Montes de Oro","2-La Unión",null,null,null,null,null,"",null,null,null,""]
["6-Puntarenas","4-Montes de Oro","3-San Isidro",null,null,null,null,null,"",null,null,null,""]
["6-Puntarenas","5-Osa","1-Cortés",null,null,null,null,null,"",null,null,null,""]
["6-Puntarenas","5-Osa","2-Palmar",null,null,null,null,null,"",null,null,null,""]
["6-Puntarenas","5-Osa","3-Sierpe",null,null,null,null,null,"",null,null,null,""]
["6-Puntarenas","5-Osa","4-Bahía Ballena",null,null,null,null,null,"",null,null,null,""]
["6-Puntarenas","5-Osa","5-Piedras Blancas",null,null,null,null,null,"",null,null,null,""]
["6-Puntarenas","5-Osa","6-Bahía Drake",null,null,null,null,null,"",null,null,null,""]
["6-Puntarenas","6-Quepos","1-Quepos",null,null,null,null,null,"",null,null,null,""]
["6-Puntarenas","6-Quepos","2-Savegre",null,null,null,null,null,"",null,null,null,""]
["6-Puntarenas","6-Quepos","3-Naranjito",null,null,null,null,null,"",null,null,null,""]
["6-Puntarenas","7-Golfito","1-Golfito",null,null,null,null,null,"",null,null,null,""]
["6-Puntarenas","7-Golfito","2-Puerto Jiménez",null,null,null,null,null,"",null,null,null,""]
["6-Puntarenas","7-Golfito","3-Guaycará",null,null,null,null,null,"",null,null,null,""]
["6-Puntarenas","7-Golfito","4-Pavón",null,null,null,null,null,"",null,null,null,""]
["6-Puntarenas","8-Coto Brus","1-San Vito",null,null,null,null,null,"",null,null,null,""]
["6-Puntarenas","8-Coto Brus","2-Sabalito",null,null,null,null,null,"",null,null,null,""]
["6-Puntarenas","8-Coto Brus","3-Aguabuena",null,null,null,null,null,"",null,null,null,""]
["6-Puntarenas","8-Coto Brus","4-Limoncito",null,null,null,null,null,"",null,null,null,""]
["6-Puntarenas","8-Coto Brus","5-Pittier",null,null,null,null,null,"",null,null,null,""]
["6-Puntarenas","8-Coto Brus","6-Gutiérrez Brown",null,null,null,null,null,"",null,null,null,""]
["6-Puntarenas","9-Parrita","1-Parrita",null,null,null,null,null,{"$f":"IF(A450=F$2,B450,\"\")","v":""},null,null,null,""]
["6-Puntarenas","10-Corredores","1-Corredor",null,null,null,null,null,"",null,null,null,{"$f":"IF(AND(A451=F$2,B451=F$3),C451,\"\")","v":""}]
["6-Puntarenas","10-Corredores","2-La Cuesta",null,null,null,null,null,"",null,null,null,""]
["6-Puntarenas","10-Corredores","3-Paso Canoas",null,null,null,null,null,"",null,null,null,""]
["6-Puntarenas","10-Corredores","4-Laurel",null,null,null,null,null,"",null,null,null,""]
["6-Puntarenas","11-Garabito","1-Jacó",null,null,null,null,null,"",null,null,null,""]
["6-Puntarenas","11-Garabito","2-Tárcoles",null,null,null,null,null,"",null,null,null,""]
["7-Limón","1-Limón","1-Limón",null,null,null,null,null,"",null,null,null,""]
["7-Limón","1-Limón","2-Valle la Estrella",null,null,null,null,null,"",null,null,null,""]
["7-Limón","1-Limón","3-Río Blanco",null,null,null,null,null,"",null,null,null,""]
["7-Limón","1-Limón","4-Matama",null,null,null,null,null,"",null,null,null,""]
["7-Limón","2-Pococí","1-Guápiles",null,null,null,null,null,"",null,null,null,""]
["7-Limón","2-Pococí","2-Jiménez",null,null,null,null,null,"",null,null,null,""]
["7-Limón","2-Pococí","3-La Rita",null,null,null,null,null,"",null,null,null,""]
["7-Limón","2-Pococí","4-Roxana",null,null,null,null,null,"",null,null,null,""]
["7-Limón","2-Pococí","5-Cariari",null,null,null,null,null,"",null,null,null,""]
["7-Limón","2-Pococí","6-Colorado",null,null,null,null,null,"",null,null,null,""]
["7-Limón","2-Pococí","7-La Colonia",null,null,null,null,null,"",null,null,null,""]
["7-Limón","3-Siquirres","1-Siquirres",null,null,null,null,null,"",null,null,null,""]
["7-Limón","3-Siquirres","2-Pacuarito",null,null,null,null,null,"",null,null,null,""]
["7-Limón","3-Siquirres","3-Florida",null,null,null,null,null,"",null,null,null,""]
["7-Limón","3-Siquirres","4-Germania",null,null,null,null,null,"",null,null,null,""]
["7-Limón","3-Siquirres","5-Cairo",null,null,null,null,null,"",null,null,null,""]
["7-Limón","3-Siquirres","6-Alegría",null,null,null,null,null,"",null,null,null,""]
["7-Limón","4-Talamanca","1-Bratsi",null,null,null,null,null,"",null,null,null,""]
["7-Limón","4-Talamanca","2-Sixaola",null,null,null,null,null,"",null,null,null,""]
["7-Limón","4-Talamanca","3-Cahuita",null,null,null,null,null,"",null,null,null,""]
["7-Limón","4-Talamanca","4-Telire",null,null,null,null,null,"",null,null,null,""]
["7-Limón","5-Matina","1-Matina",null,null,null,null,null,"",null,null,null,""]
["7-Limón","5-Matina","2-Batán",null,null,null,null,null,"",null,null,null,""]
["7-Limón","5-Matina","3-Carrandi",null,null,null,null,null,"",null,null,null,""]
["7-Limón","6-Guácimo","1-Guácimo",null,null,null,null,null,"",null,null,null,""]
["7-Limón","6-Guácimo","2-Mercedes",null,null,null,null,null,"",null,null,null,""]
["7-Limón","6-Guácimo","3-Pocora",null,null,null,null,null,"",null,null,null,""]
["7-Limón","6-Guácimo","4-Río Jiménez",null,null,null,null,null,"",null,null,null,""]
["7-Limón","6-Guácimo","5-Duacari",null,null,null,null,null,"",null,null,null,""]
[null,null,null,null,null,null,null,null,"",null,null,null,""]

{"sheet":"Provincias-Muni","index":14,"n_rows":90,"n_cols":3,"rows_kept":90,"cut":false,"hidden":true,"merged":[]}
["1-San José","1-San José"]
["1-San José","2-Escazú",{"$f":"IF(OR(Q1=\"San José\",Q1=\"Escazú\",Q1=\"Desamparados\",Q1=\"Puriscal\",Q1=\"Tarrazú\",Q1=\"Aserrí\",Q1=\"Mora\",Q1=\"Goicoechea\",Q1=\"Santa Ana\",Q1=\"Alajuelita\",Q1=\"Vásquez de Coronado\", Q1=\"Acosta\",Q1=\"Tibás\",Q1=\"Moravia\",Q1=\"Montes de Oca\",Q1=\"Turrubares\",Q1=\"Dota\",Q1=\"Curridabat\",Q1=\"Peréz Zeledón\",Q1=\"León Cortés Castro\"),\"1-San José\",\"no\")","v":"no"}]
["1-San José","3-Desamparados"]
["1-San José","4-Puriscal"]
["1-San José","5-Tarrazú"]
["1-San José","6-Aserrí"]
["1-San José","7-Mora"]
["1-San José","8-Goicoechea"]
["1-San José","9-Santa Ana"]
["1-San José","10-Alajuelita"]
["1-San José","11-Vásquez de Coronado     "]
["1-San José","12-Acosta"]
["1-San José","13-Tibás"]
["1-San José","14-Moravia"]
["1-San José","15-Montes de Oca"]
["1-San José","16-Turrubares"]
["1-San José","17-Dota"]
["1-San José","18-Curridabat"]
["1-San José","19-Pérez Zeledón"]
["1-San José","20-León Cortés Castro"]
["2-Alajuela","1-Alajuela"]
["2-Alajuela","2-San Ramón",{"$f":"IF(OR(Q1=\"San José\",Q1=\"Escazú\",Q1=\"Desamparados\",Q1=\"Puriscal\",Q1=\"Tarrazú\",Q1=\"Aserrí\",Q1=\"Mora\",Q1=\"Goicoechea\",Q1=\"Santa Ana\",Q1=\"Alajuelita\",Q1=\"Vásquez de Coronado\", Q1=\"Acosta\",Q1=\"Tibás\",Q1=\"Moravia\",Q1=\"Montes de Oca\",Q1=\"Turrubares\",Q1=\"Dota\",Q1=\"Curridabat\",Q1=\"Peréz Zeledón\",Q1=\"León Cortés Castro\"),\"1-San José\",IF(OR(Q1=\"Alajuela\",Q1=\"San Ramón\",Q1=\"Peñas Blancas\",Q1=\"Grecia\",Q1=\"San Mateo\",Q1=\"Atenas\",Q1=\"Naranjo\",Q1=\"Palmares\",Q1=\"Poás\",Q1=\"Orotina\",Q1=\"San Carlos\",Q1=\"Zarcero\",Q1=\"Valverde Vega\",Q1=\"Upala\",Q1=\"Los Chiles\",Q1=\"Guatuso\",Q1=\"Rio Cuarto\"),\"2-Alajuela\",\"no\"))","v":"no"}]
["2-Alajuela","Peñas Blancas"]
["2-Alajuela","3-Grecia"]
["2-Alajuela","4-San Mateo"]
["2-Alajuela","5-Atenas"]
["2-Alajuela","6-Naranjo"]
["2-Alajuela","7-Palmares"]
["2-Alajuela","8-Poás"]
["2-Alajuela","9-Orotina"]
["2-Alajuela","10-San Carlos"]
["2-Alajuela","11-Zarcero"]
["2-Alajuela","12-Valverde Vega"]
["2-Alajuela","13-Upala"]
["2-Alajuela","14-Los Chiles"]
["2-Alajuela","15-Guatuso"]
["2-Alajuela","16-Río Cuarto"]
["3-Cartago","1-Cartago"]
["3-Cartago","2-Paraíso",{"$f":"IF(OR(Q1=\"San José\",Q1=\"Escazú\",Q1=\"Desamparados\",Q1=\"Puriscal\",Q1=\"Tarrazú\",Q1=\"Aserrí\",Q1=\"Mora\",Q1=\"Goicoechea\",Q1=\"Santa Ana\",Q1=\"Alajuelita\",Q1=\"Vásquez de Coronado\", Q1=\"Acosta\",Q1=\"Tibás\",Q1=\"Moravia\",Q1=\"Montes de Oca\",Q1=\"Turrubares\",Q1=\"Dota\",Q1=\"Curridabat\",Q1=\"Peréz Zeledón\",Q1=\"León Cortés Castro\"),\"1-San José\",IF(OR(Q1=\"Alajuela\",Q1=\"San Ramón\",Q1=\"Peñas Blancas\",Q1=\"Grecia\",Q1=\"San Mateo\",Q1=\"Atenas\",Q1=\"Naranjo\",Q1=\"Palmares\",Q1=\"Poás\",Q1=\"Orotina\",Q1=\"San Carlos\",Q1=\"Zarcero\",Q1=\"Valverde Vega\",Q1=\"Upala\",Q1=\"Los Chiles\",Q1=\"Guatuso\",Q1=\"Rio Cuarto\"),\"2-Alajuela\",IF(OR(Q1=\"Cartago\",Q1=\"Paraíso\",Q1=\"La Unión\",Q1=\"Jimenéz\",Q1=\"Tucurrique\",Q1=\"Turrialba\",Q1=\"Alvarado\",Q1=\"Cervantes\",Q1=\"Oreamuno\",Q1=\"El Guarco\"),\"3-Cartago\",IF(OR(Q1=\"Heredia\",Q1=\"Barva\",Q1=\"Santo Domingo\",Q1=\"Santa Barbara\",Q1=\"San Rafael\", Q1=\"San Isidro\",Q1=\"Belén\",Q1=\"Flores\",Q1=\"San Pablo\",Q1=\"Sarapiqui\"),\"4-Heredia\",\"no\"))))","v":"no"}]
["3-Cartago","3-La Unión"]
["3-Cartago","4-Jiménez"]
["3-Cartago","Tucurrique"]
["3-Cartago","5-Turrialba"]
["3-Cartago","6-Alvarado"]
["3-Cartago","Cervantes"]
["3-Cartago","7-Oreamuno"]
["3-Cartago","8-El Guarco"]
["4-Heredia","1-Heredia"]
["4-Heredia","2-Barva"]
["4-Heredia","3-Santo Domingo"]
["4-Heredia","4-Santa Barbara"]
["4-Heredia","5-San Rafael"]
["4-Heredia","6-San Isidro"]
["4-Heredia","7-Belén"]
["4-Heredia","8-Flores"]
["4-Heredia","9-San Pablo"]
["4-Heredia","10-Sarapiquí"]
["5-Guanacaste","1-Liberia"]
["5-Guanacaste","2-Nicoya"]
["5-Guanacaste","3-Santa Cruz"]
["5-Guanacaste","4-Bagaces"]
["5-Guanacaste","5-Carrillo"]
["5-Guanacaste","6-Cañas"]
["5-Guanacaste","7-Abangares"]
["5-Guanacaste","Cólorado"]
["5-Guanacaste","8-Tilarán"]
["5-Guanacaste","9-Nandayure"]
["5-Guanacaste","10-La Cruz",{"$f":"IF(OR(Q1=\"San José\",Q1=\"Escazú\",Q1=\"Desamparados\",Q1=\"Puriscal\",Q1=\"Tarrazú\",Q1=\"Aserrí\",Q1=\"Mora\",Q1=\"Goicoechea\",Q1=\"Santa Ana\",Q1=\"Alajuelita\",Q1=\"Vásquez de Coronado\",Q1=\"Acosta\",Q1=\"Tibás\",Q1=\"Moravia\",Q1=\"Montes de Oca\",Q1=\"Turrubares\",Q1=\"Dota\",Q1=\"Curridabat\",Q1=\"Peréz Zeledón\",Q1=\"León Cortés Castro\"),\"1-San José\",IF(OR(Q1=\"Alajuela\",Q1=\"San Ramón\",Q1=\"Peñas Blancas\",Q1=\"Grecia\",Q1=\"San Mateo\",Q1=\"Atenas\",Q1=\"Naranjo\",Q1=\"Palmares\",Q1=\"Poás\",Q1=\"Orotina\",Q1=\"San Carlos\",Q1=\"Zarcero\",Q1=\"Valverde Vega\",Q1=\"Upala\",Q1=\"Los Chiles\",Q1=\"Guatuso\",Q1=\"Rio Cuarto\"),\"2-Alajuela\",IF(OR(Q1=\"Cartago\",Q1=\"Paraíso\",Q1=\"La Unión\",Q1=\"Jimenéz\",Q1=\"Tucurrique\",Q1=\"Turrialba\",Q1=\"Alvarado\",Q1=\"Cervantes\",Q1=\"Oreamuno\",Q1=\"El Guarco\"),\"3-Cartago\",IF(OR(Q1=\"Heredia\",Q1=\"Barva\",Q1=\"Santo Domingo\",Q1=\"Santa Barbara\",Q1=\"San Rafael\",Q1=\"San Isidro\",Q1=\"Belén\",Q1=\"Flores\",Q1=\"San Pablo\",Q1=\"Sarapiqui\"),\"4-Heredia\",IF(OR(Q1=\"Liberia\",Q1=\"Nicoya\",Q1=\"Santa Cruz\",Q1=\"Bagaces\",Q1=\"Carrillo\",Q1=\"Cañas\",Q1=\"Abangares\",Q1=\"Cólorado\",Q1=\"Tilarán\",Q1=\"Nandayure\",Q1=\"La Cruz\",Q1=\"Hojancha\"),\"5-Guanacaste\",IF(OR(Q1=\"Puntarenas\",Q1=\"Esparza\",Q1=\"Buenos Aires\",Q1=\"Montes de Oro\",Q1=\"Osa\",Q1=\"Quepos\",Q1=\"Golfito\",Q1=\"Coto Brus\",Q1=\"Parrita\",Q1=\"Corredores\",Q1=\"Garabito\",Q1=\"Lepanto\",Q1=\"Paquera\",Q1=\"Cóbano\",Q1=\"Monteverde\"),\"6-Puntarenas\",\"no\"))))))","v":"no"}]
["5-Guanacaste","11-Hojancha"]
["6-Puntarenas","1-Puntarenas"]
["6-Puntarenas","2-Esparza"]
["6-Puntarenas","3-Buenos Aires"]
["6-Puntarenas","4-Montes de Oro"]
["6-Puntarenas","5-Osa"]
["6-Puntarenas","6-Quepos"]
["6-Puntarenas","7-Golfito"]
["6-Puntarenas","8-Coto Brus"]
["6-Puntarenas","9-Parrita"]
["6-Puntarenas","10-Corredores"]
["6-Puntarenas","11-Garabito"]
["6-Puntarenas","Lepanto"]
["6-Puntarenas","Paquera"]
["6-Puntarenas","Cóbano"]
["6-Puntarenas","Monteverde"]
["7-Limón","1-Limón"]
["7-Limón","2-Pococí"]
["7-Limón","3-Siquirres",{"$f":"IF(OR(Q1=\"San José\",Q1=\"Escazú\",Q1=\"Desamparados\",Q1=\"Puriscal\",Q1=\"Tarrazú\",Q1=\"Aserrí\",Q1=\"Mora\",Q1=\"Goicoechea\",Q1=\"Santa Ana\",Q1=\"Alajuelita\",Q1=\"Vásquez de Coronado\",Q1=\"Acosta\",Q1=\"Tibás\",Q1=\"Moravia\",Q1=\"Montes de Oca\",Q1=\"Turrubares\",Q1=\"Dota\",Q1=\"Curridabat\",Q1=\"Peréz Zeledón\",Q1=\"León Cortés Castro\"),\"1-San José\",IF(OR(Q1=\"Alajuela\",Q1=\"San Ramón\",Q1=\"Peñas Blancas\",Q1=\"Grecia\",Q1=\"San Mateo\",Q1=\"Atenas\",Q1=\"Naranjo\",Q1=\"Palmares\",Q1=\"Poás\",Q1=\"Orotina\",Q1=\"San Carlos\",Q1=\"Zarcero\",Q1=\"Valverde Vega\",Q1=\"Upala\",Q1=\"Los Chiles\",Q1=\"Guatuso\",Q1=\"Rio Cuarto\"),\"2-Alajuela\",IF(OR(Q1=\"Cartago\",Q1=\"Paraíso\",Q1=\"La Unión\",Q1=\"Jimenéz\",Q1=\"Tucurrique\",Q1=\"Turrialba\",Q1=\"Alvarado\",Q1=\"Cervantes\",Q1=\"Oreamuno\",Q1=\"El Guarco\"),\"3-Cartago\",IF(OR(Q1=\"Heredia\",Q1=\"Barva\",Q1=\"Santo Domingo\",Q1=\"Santa Barbara\",Q1=\"San Rafael\",Q1=\"San Isidro\",Q1=\"Belén\",Q1=\"Flores\",Q1=\"San Pablo\",Q1=\"Sarapiqui\"),\"4-Heredia\",IF(OR(Q1=\"Liberia\",Q1=\"Nicoya\",Q1=\"Santa Cruz\",Q1=\"Bagaces\",Q1=\"Carrillo\",Q1=\"Cañas\",Q1=\"Abangares\",Q1=\"Cólorado\",Q1=\"Tilarán\",Q1=\"Nandayure\",Q1=\"La Cruz\",Q1=\"Hojancha\"),\"5-Guanacaste\",IF(OR(Q1=\"Puntarenas\",Q1=\"Esparza\",Q1=\"Buenos Aires\",Q1=\"Montes de Oro\",Q1=\"Osa\",Q1=\"Quepos\",Q1=\"Golfito\",Q1=\"Coto Brus\",Q1=\"Parrita\",Q1=\"Corredores\",Q1=\"Garabito\",Q1=\"Lepanto\",Q1=\"Paquera\",Q1=\"Cóbano\",Q1=\"Monteverde\"),\"6-Puntarenas\",\"7-Limón\"))))))","v":"7-Limón"}]
["7-Limón","4-Talamanca"]
["7-Limón","5-Matina"]
["7-Limón","6-Guácimo"]

{"sheet":"Municipalidades y Concejos de D","index":15,"n_rows":271,"n_cols":19,"rows_kept":271,"cut":false,"hidden":true,"merged":[[46,17,46,18],[18,8,18,9],[15,8,15,9],[16,8,16,9],[17,8,17,9]]}
["Abangares","SJ","1-San José",1930,"-",null,null,null,"SJ"]
["Acosta","A","2-Alajuela",1931,"A","1-Manzanero",null,"I-Excelente/Excellent","A"]
["Alajuela","C","3-Cartago",1932,"B","2-Cabecero",null,"II-Muy bueno-Óptimo/Very Good-Optimum","C"]
["Alajuelita","H","4-Heredia",1933,"C","3-Esquinero ",null,"III-Muy bueno-Regular/Very good-Regular","H"]
["Alvarado","G","5-Guanacaste",1934,"D","4-Medianero con dos frentes",null,"IV-Bueno/Good","G"]
["Aserrí","P","6-Puntarenas",1935,"F","5-Medianero",null,"V-Regular Óptimo/Regular-Optimum","P"]
["Atenas","L","7-Limón",1936,"G","6-Lateral callejón sin salida",null,"VI-Regular-regular","L"]
["Bagaces",null,null,1937,"H","7-Fondo callejón sin salida",null,"VII-Regular-Malo/Regular-Bad"]
["Barva",null,null,1938,"I","8-En servidumbre",null,"VIII-Malo/Bad"]
["Belén",null,null,1939,"J",1,"Porcentaje"]
["Buenos Aires",null,null,1940,"K",100,"Porcentaje"]
["Cañas",null,null,1941,"L",3,null,"1-Excelente/Excellent"]
["Carrillo",null,null,1942,"M",99,null,"2-Bueno/Good"]
["Cartago",null,null,1943,"O",8,null,"3-Normal"]
["Cervantes",null,null,1944,"P","Baldío-Wasteland",null,"4-Regular"]
["Cóbano",null,null,1945,"Q","Comercial-Commercial",null,"5-Malo/Bad"]
["Colorado",null,null,1946,"R","Residencial-Residential"]
["Corredores",null,null,1947,"S","Industrial-Industrial"]
["Coto Brus",null,null,1948,"T","Mixto-Mixed ( ¤ )"]
["Curridabat",null,null,1949,"U","Educacional-Educational",null,"Sin Inscribir"]
["Desamparados",null,null,1950,"V","Recreativo-Recreational",null,"Dominio"]
["Dota",null,null,1951,"W","Religioso-Religious",null,"Usufructo"]
["El Guarco",null,null,1952,"X","En Proceso-Under construction",null,"Información Posesoria"]
["Escazú",null,null,1953,"Y","Agropecuario-Agricultural (*)",null,"Parcela del INDER"]
["Esparza",null,null,1954,"Z",null,null,"Ocupación en Precario"]
["Flores",null,null,1955,null,null,null,"Zona Marítimo"]
["Garabito",null,null,1956,null,null,null,"Otro"]
["Goicoechea",null,null,1957]
["Golfito",null,null,1958]
["Grecia",null,null,1959]
["Guácimo",null,null,1960]
["Guatuso",null,null,1961,null,"Sobre/Above ","Cordón/Curb ",null,null,"Asfalto/Paved",null,"Vacio/Unused"]
["Heredia",null,null,1962,null,"A Nivel/Even ","Caño/Street Glutter",null," ","Lastre/Ballast",null,"Construido/Built up"]
["Hojancha",null,null,1963,null,"Bajo/Low","Acera/Sidewalk",null,null,"Tierra/Dirt lane",null,"En Proceso/Under construction"]
["Jimenez",null,null,1964,null,null,null,null,null,"Servidumbre/Access-easement ",null,null,null,null,null,null,null,null,"Regularidad Regularity"]
["La Cruz",null,null,1965,null,"Ondulado/Undulating","Cañería/Water Pipe",null,null,"Alameda/Narrow pathway",null,null,null,null,null,null,null,null,"Frente Front"]
["La Unión",null,null,1966,null,"Quebrado/Steep","Telefono/Phone",null,null,"Adoquín/Cobbled",null,null,null,null,null,null,null,null,"Zona Homogenea Legal Zoning"]
["León Cortés Castro",null,null,1967,null,"Muy Quebrado/Very steep","Electricidad/Electricity",null,null,null,null,null,null,null,null,null,null,null,"Ubicación Site Location"]
["Lepanto",null,null,1968,null,null,"Alumbrado Publico/Public street lighting"]
["Liberia",null,null,1969]
["Limón ",null,null,1970]
["Los Chiles",null,null,1971,null,"O","Impuesto Anual/Annual Property Tax"]
["Matina",null,null,1972,null,"MB","Impuesto Trimestral/Quarterly Property Tax"]
["Montes de Oca",null,null,1973,null,"B","Impuesto Mensual/Monthly Property Tax"]
["Montes de Oro",null,null,1974,null,"I"]
["Monteverde",null,null,1975,null,"R","•Cédula de Identidad"]
["Mora",null,null,1976,null,"D","•Cédula de Residencia"]
["Moravia",null,null,1977,null,"M","•Pasaporte"]
["Nandayure",null,null,1978,null,"MM","•Persona Jurídica"]
["Naranjo",null,null,1979,null,"DM","•Otros"]
["Nicoya",null,null,1980]
["Oreamuno",null,null,1981]
["Orotina",null,null,1982]
["Osa",null,null,1983,null,"Frutas/Fruits",null,"Acuacultura"]
["Palmares",null,null,1984,null,"Café/Coffee",null,"Zoocriaderos"]
["Paquera",null,null,1985,null,"Granos/Grain",null,"Tabaco"]
["Paraíso",null,null,1986,null,"Piña/Pineapple",null,"Palmas"]
["Parrita",null,null,1987,null,"Hortalizas/Vegetables",null,"Pastos"]
["Peñas Blancas",null,null,1988,null,"Tubercúlos/Tubercles",null,"Cultivos Energeticos"]
["Pérez Zeledón",null,null,1989,null,"Cucurbitáceas/Cucurbitaceae",null,"Áreas de Protección"]
["Poás",null,null,1990,null,"Especies/Species",null,"Apicultura"]
["Pococí",null,null,1991,null,"Cacao/Cocoa",null,"Palma Aceitera"]
["Puntarenas",null,null,1992,null,"Caña/Cane",null,"Platano/Banano"]
["Puriscal",null,null,1993,null,"Banano, Platano/Banana",null,"Café"]
["Quepos",null,null,1994,null,"Oliaginosas/Oliaginous",null,"Piña"]
["Rio Cuarto",null,null,1995,null,"Nueces, Palmas/Nuts,Palms",null,"Granos Básicos"]
["San Carlos",null,null,1996,null,"Tabaco, té/Tabacco, tea",null,"Ganadería"]
["San Isidro",null,null,1997,null,"Forrajeros/Foragers",null,"Producción Animal (Especies Menores)"]
["San José",null,null,1998,null,"Aves Corral/Bird Corral",null,"Platas Ornamentales"]
["San Mateo",null,null,1999,null,"Gand Bobina",null,"Hidroponía"]
["San Pablo",null,null,2000,null,"Prd.Acuática/Aquatic Production",null,"Horticultura"]
["San Rafael",null,null,2001,null,"Cunicultura/Cuniculture",null,"Raices y Tuberculos"]
["San Ramón",null,null,2002,null,"Caprina/Caprina",null,"Semillas y Frutos Oleaginosos"]
["Santa Ana",null,null,2003,null,"Apícola/Apiarian",null,"Plantas Medicinales"]
["Santa Bárbara",null,null,2004,null,"Huevos/Eggs",null,"Fibras Naturales"]
["Santa Cruz",null,null,2005,null,"Ovina/Sheep",null,"Caña Azucar"]
["Santo Domingo",null,null,2006,null,"Equinos/Horses",null,"Otros (**)"]
["Sarapiquí",null,null,2007,null,"Semilleros/Seedbeds"]
["Siquirres",null,null,2008,null,"Vivieros/Nurseries"]
["Talamanca",null,null,2009,null,"Flores/Flowers"]
["Tarrazú",null,null,2010,null,"Jardinería/Gardening"]
["Tibás",null,null,2011]
["Tilarán",null,null,2012]
["Tucurrique",null,null,2013]
["Turrialba",null,null,2014]
["Turrubares",null,null,2015]
["Upala",null,null,2016]
["Valverde Vega",null,null,2017]
["Vázquez de Coronado",null,null,2018]
["Zarcero",null,null,2019]
[null,null,null,2020]
[null,null,null,2021]
[null,null,null,2022]
[null,null,null,2023]
[null,null,null,2024]
[null,null,null,2025]
[null,null,null,2026]
[null,null,null,2027]
[null,null,null,2028]
[null,null,null,2029]
[null,null,null,2030]
[null,null,null,2031]
[null,null,null,2032]
[null,null,null,2033]
[null,null,null,2034]
[null,null,null,2035]
[null,null,null,2036]
[null,null,null,2037]
[null,null,null,2038]
[null,null,null,2039]
[null,null,null,2040]
[null,null,null,2041]
[null,null,null,2042]
[null,null,null,2043]
[null,null,null,2044]
[null,null,null,2045]
[null,null,null,2046]
[null,null,null,2047]
[null,null,null,2048]
[null,null,null,2049]
[null,null,null,2050]
[null,null,null,2051]
[null,null,null,2052]
[null,null,null,2053]
[null,null,null,2054]
[null,null,null,2055]
[null,null,null,2056]
[null,null,null,2057]
[null,null,null,2058]
[null,null,null,2059]
[null,null,null,2060]
[null,null,null,2061]
[null,null,null,2062]
[null,null,null,2063]
[null,null,null,2064]
[null,null,null,2065]
[null,null,null,2066]
[null,null,null,2067]
[null,null,null,2068]
[null,null,null,2069]
[null,null,null,2070]
[null,null,null,2071]
[null,null,null,2072]
[null,null,null,2073]
[null,null,null,2074]
[null,null,null,2075]
[null,null,null,2076]
[null,null,null,2077]
[null,null,null,2078]
[null,null,null,2079]
[null,null,null,2080]
[null,null,null,2081]
[null,null,null,2082]
[null,null,null,2083]
[null,null,null,2084]
[null,null,null,2085]
[null,null,null,2086]
[null,null,null,2087]
[null,null,null,2088]
[null,null,null,2089]
[null,null,null,2090]
[null,null,null,2091]
[null,null,null,2092]
[null,null,null,2093]
[null,null,null,2094]
[null,null,null,2095]
[null,null,null,2096]
[null,null,null,2097]
[null,null,null,2098]
[null,null,null,2099]
[null,null,null,2100]
[null,null,null,2101]
[null,null,null,2102]
[null,null,null,2103]
[null,null,null,2104]
[null,null,null,2105]
[null,null,null,2106]
[null,null,null,2107]
[null,null,null,2108]
[null,null,null,2109]
[null,null,null,2110]
[null,null,null,2111]
[null,null,null,2112]
[null,null,null,2113]
[null,null,null,2114]
[null,null,null,2115]
[null,null,null,2116]
[null,null,null,2117]
[null,null,null,2118]
[null,null,null,2119]
[null,null,null,2120]
[null,null,null,2121]
[null,null,null,2122]
[null,null,null,2123]
[null,null,null,2124]
[null,null,null,2125]
[null,null,null,2126]
[null,null,null,2127]
[null,null,null,2128]
[null,null,null,2129]
[null,null,null,2130]
[null,null,null,2131]
[null,null,null,2132]
[null,null,null,2133]
[null,null,null,2134]
[null,null,null,2135]
[null,null,null,2136]
[null,null,null,2137]
[null,null,null,2138]
[null,null,null,2139]
[null,null,null,2140]
[null,null,null,2141]
[null,null,null,2142]
[null,null,null,2143]
[null,null,null,2144]
[null,null,null,2145]
[null,null,null,2146]
[null,null,null,2147]
[null,null,null,2148]
[null,null,null,2149]
[null,null,null,2150]
[null,null,null,2151]
[null,null,null,2152]
[null,null,null,2153]
[null,null,null,2154]
[null,null,null,2155]
[null,null,null,2156]
[null,null,null,2157]
[null,null,null,2158]
[null,null,null,2159]
[null,null,null,2160]
[null,null,null,2161]
[null,null,null,2162]
[null,null,null,2163]
[null,null,null,2164]
[null,null,null,2165]
[null,null,null,2166]
[null,null,null,2167]
[null,null,null,2168]
[null,null,null,2169]
[null,null,null,2170]
[null,null,null,2171]
[null,null,null,2172]
[null,null,null,2173]
[null,null,null,2174]
[null,null,null,2175]
[null,null,null,2176]
[null,null,null,2177]
[null,null,null,2178]
[null,null,null,2179]
[null,null,null,2180]
[null,null,null,2181]
[null,null,null,2182]
[null,null,null,2183]
[null,null,null,2184]
[null,null,null,2185]
[null,null,null,2186]
[null,null,null,2187]
[null,null,null,2188]
[null,null,null,2189]
[null,null,null,2190]
[null,null,null,2191]
[null,null,null,2192]
[null,null,null,2193]
[null,null,null,2194]
[null,null,null,2195]
[null,null,null,2196]
[null,null,null,2197]
[null,null,null,2198]
[null,null,null,2199]
[null,null,null,2200]

{"sheet":"Nivel","index":16,"n_rows":0,"n_cols":0,"rows_kept":0,"cut":false,"hidden":true,"merged":[]}

{"sheet":"Pendiente","index":17,"n_rows":0,"n_cols":0,"rows_kept":0,"cut":false,"hidden":true,"merged":[]}